Workbook

Sheet Accueil
E2: Bilan Énergétique Simplifié
A3: 1 | G3: chauffage collectif
B6: - | C6: Votre installation comprend-t-elle la production d'eau chaude sanitaire collective ?
B7: - | C7: Choisissez un type d'énergie et la période de chauffe considérée :
B12: Gaz | F12: Fioul | J12: Réseau de chaleur
J13: (CPCU...)

Sheet Gaz Année
E1: Analyse des consommations de chauffage (Gaz)
D2: =IF(Accueil!A3=2,"","Attention, vous avez spécifié sur la page Accueil être en chauffage collectif AVEC eau chaude sanitaire") -> Attention, vous avez spécifié sur la page Accueil être en chauffage collectif AVEC eau chaude sanitaire
C3: Année | D3: Consommation Chauffage (kWh) | E3: Facture chauffage (€ TTC) | F3: Surface habitable chauffée (m2) | G3: Période de chauffe (jj/mm/aaaa)
G4: Fermeture | H4: Ouverture
C5: 2009 | I5: =IF(OR(AND(G5="",H5<>""),AND(G5<>"",H5="")),"Veuillez remplir les deux dates",IF(AND(G5="",H5=""),"",IF(AND((YEAR(G5))=C5,(YEAR(H5))=C5),"",CONCATENATE("Attention, les dates de la 'période de chauffe' ne correspondent pas à ",C5) ))) -> 
C6: 2010
C7: 2011
C8: 2012
C9: 2013
C10: 2014
C11: 2015
C12: 2016
C36: Année | D36: Consommation chauffage par DJU | E36: Simulation consommation chauffage sans dérive (kWh) | F36: Consommation relative (kWh/m2) | G36: Nombre de DJU | H36: Evolution prix du kWh
C37: =C5 -> 2009 | D37: =IF(D5<>"",D5/G37,#N/A) ->  | E37: =(INDEX($D$5:$D$13,(MIN(IF(ISBLANK($D$5:$D$13),ROW($D$14),ROW($D$5:$D$13))))-ROW($G$4),1))*G37/(INDEX($G$37:$G$45,(MIN(IF(ISBLANK($D$5:$D$13),ROW($D$14),ROW($D$5:$D$13))))-ROW($G$4),1)) ->  | F37: =IF(D5="","",D5/F5) ->  | G37: =IF(OR(G5="",H5=""), "Dates de chauffe à renseigner", SUM(INDEX('DJU Montsouris'!B:B,MATCH(DATE(YEAR(G5),1,1),'DJU Montsouris'!A:A,0),1):INDEX('DJU Montsouris'!B:B,MATCH(G5,'DJU Montsouris'!A:A,0),1),INDEX('DJU Montsouris'!B:B,MATCH(H5,'DJU Montsouris'!A:A,0),1):INDEX('DJU Montsouris'!B:B,MATCH(DATE(YEAR(G5),12,31),'DJU Montsouris'!A:A,0),1))) -> Dates de chauffe à renseigner | H37: =IF(AND(D5<>"",E5<>""),E5/D5*100,#N/A) -> 
C38: =C6 -> 2010 | D38: =IF(D6<>"",D6/G38,#N/A) ->  | E38: =(INDEX($D$5:$D$13,(MIN(IF(ISBLANK($D$5:$D$13),ROW($D$14),ROW($D$5:$D$13))))-ROW($G$4),1))*G38/(INDEX($G$37:$G$45,(MIN(IF(ISBLANK($D$5:$D$13),ROW($D$14),ROW($D$5:$D$13))))-ROW($G$4),1)) ->  | F38: =IF(D6="","",D6/F6) ->  | G38: =IF(OR(G6="",H6=""), "Dates de chauffe à renseigner", SUM(INDEX('DJU Montsouris'!B:B,MATCH(DATE(YEAR(G6),1,1),'DJU Montsouris'!A:A,0),1):INDEX('DJU Montsouris'!B:B,MATCH(G6,'DJU Montsouris'!A:A,0),1),INDEX('DJU Montsouris'!B:B,MATCH(H6,'DJU Montsouris'!A:A,0),1):INDEX('DJU Montsouris'!B:B,MATCH(DATE(YEAR(G6),12,31),'DJU Montsouris'!A:A,0),1))) -> Dates de chauffe à renseigner
C39: 2011 | E39: =(INDEX($D$5:$D$13,(MIN(IF(ISBLANK($D$5:$D$13),ROW($D$14),ROW($D$5:$D$13))))-ROW($G$4),1))*G39/(INDEX($G$37:$G$45,(MIN(IF(ISBLANK($D$5:$D$13),ROW($D$14),ROW($D$5:$D$13))))-ROW($G$4),1)) ->  | F39: =IF(D7="","",D7/F7) ->  | G39: =IF(OR(G7="",H7=""), "Dates de chauffe à renseigner", SUM(INDEX('DJU Montsouris'!B:B,MATCH(DATE(YEAR(G7),1,1),'DJU Montsouris'!A:A,0),1):INDEX('DJU Montsouris'!B:B,MATCH(G7,'DJU Montsouris'!A:A,0),1),INDEX('DJU Montsouris'!B:B,MATCH(H7,'DJU Montsouris'!A:A,0),1):INDEX('DJU Montsouris'!B:B,MATCH(DATE(YEAR(G7),12,31),'DJU Montsouris'!A:A,0),1))) -> Dates de chauffe à renseigner
C40: 2012 | E40: =(INDEX($D$5:$D$13,(MIN(IF(ISBLANK($D$5:$D$13),ROW($D$14),ROW($D$5:$D$13))))-ROW($G$4),1))*G40/(INDEX($G$37:$G$45,(MIN(IF(ISBLANK($D$5:$D$13),ROW($D$14),ROW($D$5:$D$13))))-ROW($G$4),1)) ->  | G40: =IF(OR(G8="",H8=""), "Dates de chauffe à renseigner", SUM(INDEX('DJU Montsouris'!B:B,MATCH(DATE(YEAR(G8),1,1),'DJU Montsouris'!A:A,0),1):INDEX('DJU Montsouris'!B:B,MATCH(G8,'DJU Montsouris'!A:A,0),1),INDEX('DJU Montsouris'!B:B,MATCH(H8,'DJU Montsouris'!A:A,0),1):INDEX('DJU Montsouris'!B:B,MATCH(DATE(YEAR(G8),12,31),'DJU Montsouris'!A:A,0),1))) -> Dates de chauffe à renseigner
C41: 2013 | E41: =(INDEX($D$5:$D$13,(MIN(IF(ISBLANK($D$5:$D$13),ROW($D$14),ROW($D$5:$D$13))))-ROW($G$4),1))*G41/(INDEX($G$37:$G$45,(MIN(IF(ISBLANK($D$5:$D$13),ROW($D$14),ROW($D$5:$D$13))))-ROW($G$4),1)) ->  | G41: =IF(OR(G9="",H9=""), "Dates de chauffe à renseigner", SUM(INDEX('DJU Montsouris'!B:B,MATCH(DATE(YEAR(G9),1,1),'DJU Montsouris'!A:A,0),1):INDEX('DJU Montsouris'!B:B,MATCH(G9,'DJU Montsouris'!A:A,0),1),INDEX('DJU Montsouris'!B:B,MATCH(H9,'DJU Montsouris'!A:A,0),1):INDEX('DJU Montsouris'!B:B,MATCH(DATE(YEAR(G9),12,31),'DJU Montsouris'!A:A,0),1))) -> Dates de chauffe à renseigner
C42: 2014 | E42: =(INDEX($D$5:$D$13,(MIN(IF(ISBLANK($D$5:$D$13),ROW($D$14),ROW($D$5:$D$13))))-ROW($G$4),1))*G42/(INDEX($G$37:$G$45,(MIN(IF(ISBLANK($D$5:$D$13),ROW($D$14),ROW($D$5:$D$13))))-ROW($G$4),1)) ->  | G42: =IF(OR(G10="",H10=""), "Dates de chauffe à renseigner", SUM(INDEX('DJU Montsouris'!B:B,MATCH(DATE(YEAR(G10),1,1),'DJU Montsouris'!A:A,0),1):INDEX('DJU Montsouris'!B:B,MATCH(G10,'DJU Montsouris'!A:A,0),1),INDEX('DJU Montsouris'!B:B,MATCH(H10,'DJU Montsouris'!A:A,0),1):INDEX('DJU Montsouris'!B:B,MATCH(DATE(YEAR(G10),12,31),'DJU Montsouris'!A:A,0),1))) -> Dates de chauffe à renseigner
C43: 2015 | E43: =(INDEX($D$5:$D$13,(MIN(IF(ISBLANK($D$5:$D$13),ROW($D$14),ROW($D$5:$D$13))))-ROW($G$4),1))*G43/(INDEX($G$37:$G$45,(MIN(IF(ISBLANK($D$5:$D$13),ROW($D$14),ROW($D$5:$D$13))))-ROW($G$4),1)) ->  | G43: =IF(OR(G11="",H11=""), "Dates de chauffe à renseigner", SUM(INDEX('DJU Montsouris'!B:B,MATCH(DATE(YEAR(G11),1,1),'DJU Montsouris'!A:A,0),1):INDEX('DJU Montsouris'!B:B,MATCH(G11,'DJU Montsouris'!A:A,0),1),INDEX('DJU Montsouris'!B:B,MATCH(H11,'DJU Montsouris'!A:A,0),1):INDEX('DJU Montsouris'!B:B,MATCH(DATE(YEAR(G11),12,31),'DJU Montsouris'!A:A,0),1))) -> Dates de chauffe à renseigner
C44: 2016 | E44: =(INDEX($D$5:$D$13,(MIN(IF(ISBLANK($D$5:$D$13),ROW($D$14),ROW($D$5:$D$13))))-ROW($G$4),1))*G44/(INDEX($G$37:$G$45,(MIN(IF(ISBLANK($D$5:$D$13),ROW($D$14),ROW($D$5:$D$13))))-ROW($G$4),1)) ->  | G44: =IF(OR(G12="",H12=""), "Dates de chauffe à renseigner", SUM(INDEX('DJU Montsouris'!B:B,MATCH(DATE(YEAR(G12),1,1),'DJU Montsouris'!A:A,0),1):INDEX('DJU Montsouris'!B:B,MATCH(G12,'DJU Montsouris'!A:A,0),1),INDEX('DJU Montsouris'!B:B,MATCH(H12,'DJU Montsouris'!A:A,0),1):INDEX('DJU Montsouris'!B:B,MATCH(DATE(YEAR(G12),12,31),'DJU Montsouris'!A:A,0),1))) -> Dates de chauffe à renseigner
C45: 0 | E45: =(INDEX($D$5:$D$13,(MIN(IF(ISBLANK($D$5:$D$13),ROW($D$14),ROW($D$5:$D$13))))-ROW($G$4),1))*G45/(INDEX($G$37:$G$45,(MIN(IF(ISBLANK($D$5:$D$13),ROW($D$14),ROW($D$5:$D$13))))-ROW($G$4),1)) ->  | G45: =IF(OR(G13="",H13=""), "Dates de chauffe à renseigner", SUM(INDEX('DJU Montsouris'!B:B,MATCH(DATE(YEAR(G13),1,1),'DJU Montsouris'!A:A,0),1):INDEX('DJU Montsouris'!B:B,MATCH(G13,'DJU Montsouris'!A:A,0),1),INDEX('DJU Montsouris'!B:B,MATCH(H13,'DJU Montsouris'!A:A,0),1):INDEX('DJU Montsouris'!B:B,MATCH(DATE(YEAR(G13),12,31),'DJU Montsouris'!A:A,0),1))) -> Dates de chauffe à renseigner
E47: Moyenne : | F47: =AVERAGE(F37:F45) -> 
E102: Analyse des consommations de chauffage et d'ECS (Gaz)
C103: =IF(Accueil!A3=1,"","Attention, vous avez spécifié sur la page Accueil être en chauffage collectif SANS eau chaude sanitaire") -> 
B104: Année | C104: Consommation totale (kWh) | D104: Consommation d'ECS (m3) | E104: Facture (€ TTC) | F104: Surface habitable chauffée (m2) | G104: Période de chauffe
G105: Fermeture | H105: Ouverture
B106: 2009 | I106: =IF(OR(AND(G106="",H106<>""),AND(G106<>"",H106="")),"Veuillez remplir les deux dates",IF(AND(G106="",H106=""),"",IF(AND((YEAR(G106))=B106,(YEAR(H106))=B106),"",CONCATENATE("Attention, les dates de la 'période de chauffe' ne correspondent pas à ",B106) ))) -> 
B107: 2010 | I107: =IF(OR(AND(G107="",H107<>""),AND(G107<>"",H107="")),"Veuillez remplir les deux dates",IF(AND(G107="",H107=""),"",IF(AND((YEAR(G107))=B107,(YEAR(H107))=B107),"",CONCATENATE("Attention, les dates de la 'période de chauffe' ne correspondent pas à ",B107) ))) -> 
B108: 2011
B109: 2012
B110: 2013
B111: 2014
B112: 2015
B113: 2016
C140: Nombre de DJU | D140: Consommation chauffage par DJU | E140: Simulation consommation chauffage sans dérive (kWh) | F140: Consommation d'énergie ECS (kWh) | G140: Consommation chauffage (kWh) | H140: Consommation chauffage + ECS (kWh/m2) | I140: Consommation chauffage (kWh/m2) | J140: Evolution prix du kWh (c€/kWh)
C141: =IF(OR(G106="",H106=""), "Dates de chauffe à renseigner", SUM(INDEX('DJU Montsouris'!B:B,MATCH(DATE(YEAR(G106),1,1),'DJU Montsouris'!A:A,0),1):INDEX('DJU Montsouris'!B:B,MATCH(G106,'DJU Montsouris'!A:A,0),1),INDEX('DJU Montsouris'!B:B,MATCH(H106,'DJU Montsouris'!A:A,0),1):INDEX('DJU Montsouris'!B:B,MATCH(DATE(YEAR(G106),12,31),'DJU Montsouris'!A:A,0),1))) -> Dates de chauffe à renseigner | D141: =IF(G141=0,#N/A,G141/C141) ->  | E141: =(INDEX($G$141:$G$149,(MIN(IF(ISERROR($G$141:$G$149),ROW($C$150),ROW($G$141:$G$149))))-ROW($C$140),1))*C141/(INDEX($C$141:$C$149,(MIN(IF(ISERROR($G$141:$G$149),ROW($C$150),ROW($G$141:$G$149))))-ROW($C$140),1)) ->  | F141: =120*D106 -> 0 | G141: =IF(C106="",#N/A,C106-F141) ->  | H141: =IF(C106="","",C106/F106) ->  | I141: =IF(ISNA(G141),"",G141/F106) ->  | J141: =IF(AND(E106<>"",C106<>""),E106/C106*100,#N/A) -> 
C142: =IF(OR(G107="",H107=""), "Dates de chauffe à renseigner", SUM(INDEX('DJU Montsouris'!B:B,MATCH(DATE(YEAR(G107),1,1),'DJU Montsouris'!A:A,0),1):INDEX('DJU Montsouris'!B:B,MATCH(G107,'DJU Montsouris'!A:A,0),1),INDEX('DJU Montsouris'!B:B,MATCH(H107,'DJU Montsouris'!A:A,0),1):INDEX('DJU Montsouris'!B:B,MATCH(DATE(YEAR(G107),12,31),'DJU Montsouris'!A:A,0),1))) -> Dates de chauffe à renseigner | D142: =IF(G142=0,#N/A,G142/C142) ->  | E142: =(INDEX($G$141:$G$149,(MIN(IF(ISERROR($G$141:$G$149),ROW($C$150),ROW($G$141:$G$149))))-ROW($C$140),1))*C142/(INDEX($C$141:$C$149,(MIN(IF(ISERROR($G$141:$G$149),ROW($C$150),ROW($G$141:$G$149))))-ROW($C$140),1)) ->  | F142: 0 | G142: =IF(C107="",#N/A, C107-F142) -> 
C143: =IF(OR(G108="",H108=""), "Dates de chauffe à renseigner", SUM(INDEX('DJU Montsouris'!B:B,MATCH(DATE(YEAR(G108),1,1),'DJU Montsouris'!A:A,0),1):INDEX('DJU Montsouris'!B:B,MATCH(G108,'DJU Montsouris'!A:A,0),1),INDEX('DJU Montsouris'!B:B,MATCH(H108,'DJU Montsouris'!A:A,0),1):INDEX('DJU Montsouris'!B:B,MATCH(DATE(YEAR(G108),12,31),'DJU Montsouris'!A:A,0),1))) -> Dates de chauffe à renseigner | D143: =IF(G143=0,#N/A,G143/C143) ->  | E143: =(INDEX($G$141:$G$149,(MIN(IF(ISERROR($G$141:$G$149),ROW($C$150),ROW($G$141:$G$149))))-ROW($C$140),1))*C143/(INDEX($C$141:$C$149,(MIN(IF(ISERROR($G$141:$G$149),ROW($C$150),ROW($G$141:$G$149))))-ROW($C$140),1)) ->  | F143: 0
C144: =IF(OR(G109="",H109=""), "Dates de chauffe à renseigner", SUM(INDEX('DJU Montsouris'!B:B,MATCH(DATE(YEAR(G109),1,1),'DJU Montsouris'!A:A,0),1):INDEX('DJU Montsouris'!B:B,MATCH(G109,'DJU Montsouris'!A:A,0),1),INDEX('DJU Montsouris'!B:B,MATCH(H109,'DJU Montsouris'!A:A,0),1):INDEX('DJU Montsouris'!B:B,MATCH(DATE(YEAR(G109),12,31),'DJU Montsouris'!A:A,0),1))) -> Dates de chauffe à renseigner | E144: =(INDEX($G$141:$G$149,(MIN(IF(ISERROR($G$141:$G$149),ROW($C$150),ROW($G$141:$G$149))))-ROW($C$140),1))*C144/(INDEX($C$141:$C$149,(MIN(IF(ISERROR($G$141:$G$149),ROW($C$150),ROW($G$141:$G$149))))-ROW($C$140),1)) ->  | F144: 0
C145: =IF(OR(G110="",H110=""), "Dates de chauffe à renseigner", SUM(INDEX('DJU Montsouris'!B:B,MATCH(DATE(YEAR(G110),1,1),'DJU Montsouris'!A:A,0),1):INDEX('DJU Montsouris'!B:B,MATCH(G110,'DJU Montsouris'!A:A,0),1),INDEX('DJU Montsouris'!B:B,MATCH(H110,'DJU Montsouris'!A:A,0),1):INDEX('DJU Montsouris'!B:B,MATCH(DATE(YEAR(G110),12,31),'DJU Montsouris'!A:A,0),1))) -> Dates de chauffe à renseigner | E145: =(INDEX($G$141:$G$149,(MIN(IF(ISERROR($G$141:$G$149),ROW($C$150),ROW($G$141:$G$149))))-ROW($C$140),1))*C145/(INDEX($C$141:$C$149,(MIN(IF(ISERROR($G$141:$G$149),ROW($C$150),ROW($G$141:$G$149))))-ROW($C$140),1)) ->  | F145: 0
C146: =IF(OR(G111="",H111=""), "Dates de chauffe à renseigner", SUM(INDEX('DJU Montsouris'!B:B,MATCH(DATE(YEAR(G111),1,1),'DJU Montsouris'!A:A,0),1):INDEX('DJU Montsouris'!B:B,MATCH(G111,'DJU Montsouris'!A:A,0),1),INDEX('DJU Montsouris'!B:B,MATCH(H111,'DJU Montsouris'!A:A,0),1):INDEX('DJU Montsouris'!B:B,MATCH(DATE(YEAR(G111),12,31),'DJU Montsouris'!A:A,0),1))) -> Dates de chauffe à renseigner | E146: =(INDEX($G$141:$G$149,(MIN(IF(ISERROR($G$141:$G$149),ROW($C$150),ROW($G$141:$G$149))))-ROW($C$140),1))*C146/(INDEX($C$141:$C$149,(MIN(IF(ISERROR($G$141:$G$149),ROW($C$150),ROW($G$141:$G$149))))-ROW($C$140),1)) ->  | F146: 0
C147: =IF(OR(G112="",H112=""), "Dates de chauffe à renseigner", SUM(INDEX('DJU Montsouris'!B:B,MATCH(DATE(YEAR(G112),1,1),'DJU Montsouris'!A:A,0),1):INDEX('DJU Montsouris'!B:B,MATCH(G112,'DJU Montsouris'!A:A,0),1),INDEX('DJU Montsouris'!B:B,MATCH(H112,'DJU Montsouris'!A:A,0),1):INDEX('DJU Montsouris'!B:B,MATCH(DATE(YEAR(G112),12,31),'DJU Montsouris'!A:A,0),1))) -> Dates de chauffe à renseigner | E147: =(INDEX($G$141:$G$149,(MIN(IF(ISERROR($G$141:$G$149),ROW($C$150),ROW($G$141:$G$149))))-ROW($C$140),1))*C147/(INDEX($C$141:$C$149,(MIN(IF(ISERROR($G$141:$G$149),ROW($C$150),ROW($G$141:$G$149))))-ROW($C$140),1)) ->  | F147: 0
C148: =IF(OR(G113="",H113=""), "Dates de chauffe à renseigner", SUM(INDEX('DJU Montsouris'!B:B,MATCH(DATE(YEAR(G113),1,1),'DJU Montsouris'!A:A,0),1):INDEX('DJU Montsouris'!B:B,MATCH(G113,'DJU Montsouris'!A:A,0),1),INDEX('DJU Montsouris'!B:B,MATCH(H113,'DJU Montsouris'!A:A,0),1):INDEX('DJU Montsouris'!B:B,MATCH(DATE(YEAR(G113),12,31),'DJU Montsouris'!A:A,0),1))) -> Dates de chauffe à renseigner | E148: =(INDEX($G$141:$G$149,(MIN(IF(ISERROR($G$141:$G$149),ROW($C$150),ROW($G$141:$G$149))))-ROW($C$140),1))*C148/(INDEX($C$141:$C$149,(MIN(IF(ISERROR($G$141:$G$149),ROW($C$150),ROW($G$141:$G$149))))-ROW($C$140),1)) ->  | F148: 0
C149: =IF(OR(G114="",H114=""), "Dates de chauffe à renseigner", SUM(INDEX('DJU Montsouris'!B:B,MATCH(DATE(YEAR(G114),1,1),'DJU Montsouris'!A:A,0),1):INDEX('DJU Montsouris'!B:B,MATCH(G114,'DJU Montsouris'!A:A,0),1),INDEX('DJU Montsouris'!B:B,MATCH(H114,'DJU Montsouris'!A:A,0),1):INDEX('DJU Montsouris'!B:B,MATCH(DATE(YEAR(G114),12,31),'DJU Montsouris'!A:A,0),1))) -> Dates de chauffe à renseigner | E149: =(INDEX($G$141:$G$149,(MIN(IF(ISERROR($G$141:$G$149),ROW($C$150),ROW($G$141:$G$149))))-ROW($C$140),1))*C149/(INDEX($C$141:$C$149,(MIN(IF(ISERROR($G$141:$G$149),ROW($C$150),ROW($G$141:$G$149))))-ROW($C$140),1)) ->  | F149: 0
G151: Moyenne : | H151: =AVERAGE(H141:H149) ->  | I151: =AVERAGE(I141:I149) -> 

Sheet Gaz Saison de chauffe
F1: Analyse des consommations de chauffage (Gaz)
D2: =IF(Accueil!A3=2,"","Attention, vous avez spécifié sur la page Accueil être en chauffage collectif AVEC eau chaude sanitaire") -> Attention, vous avez spécifié sur la page Accueil être en chauffage collectif AVEC eau chaude sanitaire
C3: Saison de chauffe | E3: Consommation Chauffage (kWh) | F3: Facture Chauffage (€ TTC) | G3: Surface habitable chauffée (m2) | H3: Période de chauffe (jj/mm/aaaa)
H4: Ouverture | I4: Fermeture
C5: 2008 | D5: 2009 | J5: =IF(OR(AND(H5="",I5<>""),AND(H5<>"",I5="")), "Veuillez remplir les deux dates", IF(AND(H5="",I5=""),"",IF(AND((YEAR(H5))=C5,(YEAR(I5))=D5),"","Attention, les dates 'Saison de chauffe' et 'période de chauffe' sont différentes"))) -> 
C6: 2009 | D6: 2010 | J6: =IF(OR(AND(H6="",I6<>""),AND(H6<>"",I6="")), "Veuillez remplir les deux dates", IF(AND(H6="",I6=""),"",IF(AND((YEAR(H6))=C6,(YEAR(I6))=D6),"","Attention, les dates 'Saison de chauffe' et 'période de chauffe' sont différentes"))) -> 
C7: 2010 | D7: 2011
C8: 2011 | D8: 2012
C9: 2012 | D9: 2013
C10: 2013 | D10: 2014
C11: 2014 | D11: 2015
C12: 2015 | D12: 2016
D36: Saison de chauffe | E36: Consommation chauffage par DJU | F36: Simulation consommation chauffage sans dérive (kWh) | G36: Consommation relative (kWh/m2) | H36: Nombre de DJU | I36: Evolution prix du kWh
D37: =C5&"/"&D5 -> 2008/2009 | E37: =IF(E5="",#N/A,E5/H37) ->  | F37: =(INDEX($E$5:$E$13,(MIN(IF(ISBLANK($E$5:$E$13),ROW($E$14),ROW($E$5:$E$13))))-ROW($H$4),1))*H37/(INDEX($H$37:$H$45,(MIN(IF(ISBLANK($E$5:$E$13),ROW($E$14),ROW($E$5:$E$13))))-ROW($H$4),1)) ->  | G37: =IF(E5="","",E5/G5) ->  | H37: =IF(OR(H5="",I5=""), "Dates de chauffe à renseigner", SUM(INDEX('DJU Montsouris'!B:B,MATCH(H5,'DJU Montsouris'!A:A,0),1):INDEX('DJU Montsouris'!B:B,MATCH(I5,'DJU Montsouris'!A:A,0),1))) -> Dates de chauffe à renseigner | I37: =IF(AND(E5<>"",F5<>""),F5/E5*100,#N/A) -> 
D38: =C6&"/"&D6 -> 2009/2010 | E38: =IF(E6="",#N/A,E6/H38) ->  | F38: =(INDEX($E$5:$E$13,(MIN(IF(ISBLANK($E$5:$E$13),ROW($E$14),ROW($E$5:$E$13))))-ROW($H$4),1))*H38/(INDEX($H$37:$H$45,(MIN(IF(ISBLANK($E$5:$E$13),ROW($E$14),ROW($E$5:$E$13))))-ROW($H$4),1)) ->  | G38: =IF(E6="","",E6/G6) ->  | H38: =IF(OR(H6="",I6=""), "Dates de chauffe à renseigner", SUM(INDEX('DJU Montsouris'!B:B,MATCH(H6,'DJU Montsouris'!A:A,0),1):INDEX('DJU Montsouris'!B:B,MATCH(I6,'DJU Montsouris'!A:A,0),1))) -> Dates de chauffe à renseigner
D39: 2010/2011 | E39: =IF(E7="",#N/A,E7/H39) ->  | F39: =(INDEX($E$5:$E$13,(MIN(IF(ISBLANK($E$5:$E$13),ROW($E$14),ROW($E$5:$E$13))))-ROW($H$4),1))*H39/(INDEX($H$37:$H$45,(MIN(IF(ISBLANK($E$5:$E$13),ROW($E$14),ROW($E$5:$E$13))))-ROW($H$4),1)) ->  | G39: =IF(E7="","",E7/G7) ->  | H39: =IF(OR(H7="",I7=""), "Dates de chauffe à renseigner", SUM(INDEX('DJU Montsouris'!B:B,MATCH(H7,'DJU Montsouris'!A:A,0),1):INDEX('DJU Montsouris'!B:B,MATCH(I7,'DJU Montsouris'!A:A,0),1))) -> Dates de chauffe à renseigner
D40: 2011/2012 | F40: =(INDEX($E$5:$E$13,(MIN(IF(ISBLANK($E$5:$E$13),ROW($E$14),ROW($E$5:$E$13))))-ROW($H$4),1))*H40/(INDEX($H$37:$H$45,(MIN(IF(ISBLANK($E$5:$E$13),ROW($E$14),ROW($E$5:$E$13))))-ROW($H$4),1)) ->  | H40: =IF(OR(H8="",I8=""), "Dates de chauffe à renseigner", SUM(INDEX('DJU Montsouris'!B:B,MATCH(H8,'DJU Montsouris'!A:A,0),1):INDEX('DJU Montsouris'!B:B,MATCH(I8,'DJU Montsouris'!A:A,0),1))) -> Dates de chauffe à renseigner
D41: 2012/2013 | F41: =(INDEX($E$5:$E$13,(MIN(IF(ISBLANK($E$5:$E$13),ROW($E$14),ROW($E$5:$E$13))))-ROW($H$4),1))*H41/(INDEX($H$37:$H$45,(MIN(IF(ISBLANK($E$5:$E$13),ROW($E$14),ROW($E$5:$E$13))))-ROW($H$4),1)) ->  | H41: =IF(OR(H9="",I9=""), "Dates de chauffe à renseigner", SUM(INDEX('DJU Montsouris'!B:B,MATCH(H9,'DJU Montsouris'!A:A,0),1):INDEX('DJU Montsouris'!B:B,MATCH(I9,'DJU Montsouris'!A:A,0),1))) -> Dates de chauffe à renseigner
D42: 2013/2014 | F42: =(INDEX($E$5:$E$13,(MIN(IF(ISBLANK($E$5:$E$13),ROW($E$14),ROW($E$5:$E$13))))-ROW($H$4),1))*H42/(INDEX($H$37:$H$45,(MIN(IF(ISBLANK($E$5:$E$13),ROW($E$14),ROW($E$5:$E$13))))-ROW($H$4),1)) ->  | H42: =IF(OR(H10="",I10=""), "Dates de chauffe à renseigner", SUM(INDEX('DJU Montsouris'!B:B,MATCH(H10,'DJU Montsouris'!A:A,0),1):INDEX('DJU Montsouris'!B:B,MATCH(I10,'DJU Montsouris'!A:A,0),1))) -> Dates de chauffe à renseigner
D43: 2014/2015 | F43: =(INDEX($E$5:$E$13,(MIN(IF(ISBLANK($E$5:$E$13),ROW($E$14),ROW($E$5:$E$13))))-ROW($H$4),1))*H43/(INDEX($H$37:$H$45,(MIN(IF(ISBLANK($E$5:$E$13),ROW($E$14),ROW($E$5:$E$13))))-ROW($H$4),1)) ->  | H43: =IF(OR(H11="",I11=""), "Dates de chauffe à renseigner", SUM(INDEX('DJU Montsouris'!B:B,MATCH(H11,'DJU Montsouris'!A:A,0),1):INDEX('DJU Montsouris'!B:B,MATCH(I11,'DJU Montsouris'!A:A,0),1))) -> Dates de chauffe à renseigner
D44: 2015/2016 | F44: =(INDEX($E$5:$E$13,(MIN(IF(ISBLANK($E$5:$E$13),ROW($E$14),ROW($E$5:$E$13))))-ROW($H$4),1))*H44/(INDEX($H$37:$H$45,(MIN(IF(ISBLANK($E$5:$E$13),ROW($E$14),ROW($E$5:$E$13))))-ROW($H$4),1)) ->  | H44: =IF(OR(H12="",I12=""), "Dates de chauffe à renseigner", SUM(INDEX('DJU Montsouris'!B:B,MATCH(H12,'DJU Montsouris'!A:A,0),1):INDEX('DJU Montsouris'!B:B,MATCH(I12,'DJU Montsouris'!A:A,0),1))) -> Dates de chauffe à renseigner
D45: / | F45: =(INDEX($E$5:$E$13,(MIN(IF(ISBLANK($E$5:$E$13),ROW($E$14),ROW($E$5:$E$13))))-ROW($H$4),1))*H45/(INDEX($H$37:$H$45,(MIN(IF(ISBLANK($E$5:$E$13),ROW($E$14),ROW($E$5:$E$13))))-ROW($H$4),1)) ->  | H45: =IF(OR(H13="",I13=""), "Dates de chauffe à renseigner", SUM(INDEX('DJU Montsouris'!B:B,MATCH(H13,'DJU Montsouris'!A:A,0),1):INDEX('DJU Montsouris'!B:B,MATCH(I13,'DJU Montsouris'!A:A,0),1))) -> Dates de chauffe à renseigner
F47: Moyenne : | G47: =AVERAGE(G37:G45) -> 
F99: Analyse des consommations de chauffage et d'ECS (Gaz)
D100: =IF(Accueil!A3=1,"","Attention, vous avez spécifié sur la page Accueil être en chauffage collectif SANS eau chaude sanitaire") -> 
B101: Saison de chauffe | D101: Consommation totale (kWh) | E101: Consommation d'ECS (m3) | F101: Facture (€ TTC) | G101: Surface habitable chauffée (m2) | H101: Période de chauffe
H102: Ouverture | I102: Fermeture
B103: 2008 | C103: 2009 | J103: =IF(OR(AND(H103="",I103<>""),AND(H103<>"",I103="")), "Veuillez remplir les deux dates", IF(AND(H103="",I103=""),"",IF(AND((YEAR(H103))=B103,(YEAR(I103))=C103),"","Attention, les dates 'Saison de chauffe' et 'période de chauffe' sont différentes"))) -> 
B104: 2009 | C104: 2010 | J104: =IF(OR(AND(H104="",I104<>""),AND(H104<>"",I104="")), "Veuillez remplir les deux dates", IF(AND(H104="",I104=""),"",IF(AND((YEAR(H104))=B104,(YEAR(I104))=C104),"","Attention, les dates 'Saison de chauffe' et 'période de chauffe' sont différentes"))) -> 
B105: 2010 | C105: 2011
B106: 2011 | C106: 2012
B107: 2012 | C107: 2013
B108: 2013 | C108: 2014
B109: 2014 | C109: 2015
B110: 2015 | C110: 2016
C140: Saison de chauffe | D140: Nombre de DJU | E140: Consommation chauffage par DJU | F140: Simulation consommation chauffage sans dérive (kWh) | G140: Consommation d'énergie ECS (kWh) | H140: Consommation chauffage (kWh) | I140: Consommation chauffage + ECS (kWh/m2) | J140: Consommation chauffage (kWh/m2) | K140: Evolution prix du kWh
C141: =B103&"/"&C103 -> 2008/2009 | D141: =IF(OR(H103="",I103=""), "Dates de chauffe à renseigner", SUM(INDEX('DJU Montsouris'!B:B,MATCH(H103,'DJU Montsouris'!A:A,0),1):INDEX('DJU Montsouris'!B:B,MATCH(I103,'DJU Montsouris'!A:A,0),1))) -> Dates de chauffe à renseigner | E141: =IF(H141=0,#N/A,H141/D141) ->  | F141: =(INDEX($H$141:$H$149,(MIN(IF(ISERROR($H$141:$H$149),ROW($H$150),ROW($H$141:$H$149))))-ROW($H$140),1))*D141/(INDEX($D$141:$D$149,(MIN(IF(ISERROR($H$141:$H$149),ROW($H$150),ROW($H$141:$H$149))))-ROW($H$140),1)) ->  | G141: =120*E103 -> 0 | H141: =IF(D103="",#N/A,D103-G141) ->  | I141: =IF(D103="","",D103/G103) ->  | J141: =IF(ISNA(H141),"",H141/G103) ->  | K141: =IF(AND(F103<>"",D103<>""),F103/D103*100,#N/A) -> 
C142: =B104&"/"&C104 -> 2009/2010 | D142: =IF(OR(H104="",I104=""), "Dates de chauffe à renseigner", SUM(INDEX('DJU Montsouris'!B:B,MATCH(H104,'DJU Montsouris'!A:A,0),1):INDEX('DJU Montsouris'!B:B,MATCH(I104,'DJU Montsouris'!A:A,0),1))) -> Dates de chauffe à renseigner | E142: =IF(H142=0,#N/A,H142/D142) ->  | F142: =(INDEX($H$141:$H$149,(MIN(IF(ISERROR($H$141:$H$149),ROW($H$150),ROW($H$141:$H$149))))-ROW($H$140),1))*D142/(INDEX($D$141:$D$149,(MIN(IF(ISERROR($H$141:$H$149),ROW($H$150),ROW($H$141:$H$149))))-ROW($H$140),1)) ->  | G142: 0
C143: 2010/2011 | D143: =IF(OR(H105="",I105=""), "Dates de chauffe à renseigner", SUM(INDEX('DJU Montsouris'!B:B,MATCH(H105,'DJU Montsouris'!A:A,0),1):INDEX('DJU Montsouris'!B:B,MATCH(I105,'DJU Montsouris'!A:A,0),1))) -> Dates de chauffe à renseigner | E143: =IF(H143=0,#N/A,H143/D143) ->  | F143: =(INDEX($H$141:$H$149,(MIN(IF(ISERROR($H$141:$H$149),ROW($H$150),ROW($H$141:$H$149))))-ROW($H$140),1))*D143/(INDEX($D$141:$D$149,(MIN(IF(ISERROR($H$141:$H$149),ROW($H$150),ROW($H$141:$H$149))))-ROW($H$140),1)) ->  | G143: 0
C144: 2011/2012 | D144: =IF(OR(H106="",I106=""), "Dates de chauffe à renseigner", SUM(INDEX('DJU Montsouris'!B:B,MATCH(H106,'DJU Montsouris'!A:A,0),1):INDEX('DJU Montsouris'!B:B,MATCH(I106,'DJU Montsouris'!A:A,0),1))) -> Dates de chauffe à renseigner | F144: =(INDEX($H$141:$H$149,(MIN(IF(ISERROR($H$141:$H$149),ROW($H$150),ROW($H$141:$H$149))))-ROW($H$140),1))*D144/(INDEX($D$141:$D$149,(MIN(IF(ISERROR($H$141:$H$149),ROW($H$150),ROW($H$141:$H$149))))-ROW($H$140),1)) ->  | G144: 0
C145: 2012/2013 | D145: =IF(OR(H107="",I107=""), "Dates de chauffe à renseigner", SUM(INDEX('DJU Montsouris'!B:B,MATCH(H107,'DJU Montsouris'!A:A,0),1):INDEX('DJU Montsouris'!B:B,MATCH(I107,'DJU Montsouris'!A:A,0),1))) -> Dates de chauffe à renseigner | F145: =(INDEX($H$141:$H$149,(MIN(IF(ISERROR($H$141:$H$149),ROW($H$150),ROW($H$141:$H$149))))-ROW($H$140),1))*D145/(INDEX($D$141:$D$149,(MIN(IF(ISERROR($H$141:$H$149),ROW($H$150),ROW($H$141:$H$149))))-ROW($H$140),1)) ->  | G145: 0
C146: 2013/2014 | D146: =IF(OR(H108="",I108=""), "Dates de chauffe à renseigner", SUM(INDEX('DJU Montsouris'!B:B,MATCH(H108,'DJU Montsouris'!A:A,0),1):INDEX('DJU Montsouris'!B:B,MATCH(I108,'DJU Montsouris'!A:A,0),1))) -> Dates de chauffe à renseigner | F146: =(INDEX($H$141:$H$149,(MIN(IF(ISERROR($H$141:$H$149),ROW($H$150),ROW($H$141:$H$149))))-ROW($H$140),1))*D146/(INDEX($D$141:$D$149,(MIN(IF(ISERROR($H$141:$H$149),ROW($H$150),ROW($H$141:$H$149))))-ROW($H$140),1)) ->  | G146: 0
C147: 2014/2015 | D147: =IF(OR(H109="",I109=""), "Dates de chauffe à renseigner", SUM(INDEX('DJU Montsouris'!B:B,MATCH(H109,'DJU Montsouris'!A:A,0),1):INDEX('DJU Montsouris'!B:B,MATCH(I109,'DJU Montsouris'!A:A,0),1))) -> Dates de chauffe à renseigner | F147: =(INDEX($H$141:$H$149,(MIN(IF(ISERROR($H$141:$H$149),ROW($H$150),ROW($H$141:$H$149))))-ROW($H$140),1))*D147/(INDEX($D$141:$D$149,(MIN(IF(ISERROR($H$141:$H$149),ROW($H$150),ROW($H$141:$H$149))))-ROW($H$140),1)) ->  | G147: 0
C148: 2015/2016 | D148: =IF(OR(H110="",I110=""), "Dates de chauffe à renseigner", SUM(INDEX('DJU Montsouris'!B:B,MATCH(H110,'DJU Montsouris'!A:A,0),1):INDEX('DJU Montsouris'!B:B,MATCH(I110,'DJU Montsouris'!A:A,0),1))) -> Dates de chauffe à renseigner | F148: =(INDEX($H$141:$H$149,(MIN(IF(ISERROR($H$141:$H$149),ROW($H$150),ROW($H$141:$H$149))))-ROW($H$140),1))*D148/(INDEX($D$141:$D$149,(MIN(IF(ISERROR($H$141:$H$149),ROW($H$150),ROW($H$141:$H$149))))-ROW($H$140),1)) ->  | G148: 0
C149: / | D149: =IF(OR(H111="",I111=""), "Dates de chauffe à renseigner", SUM(INDEX('DJU Montsouris'!B:B,MATCH(H111,'DJU Montsouris'!A:A,0),1):INDEX('DJU Montsouris'!B:B,MATCH(I111,'DJU Montsouris'!A:A,0),1))) -> Dates de chauffe à renseigner | F149: =(INDEX($H$141:$H$149,(MIN(IF(ISERROR($H$141:$H$149),ROW($H$150),ROW($H$141:$H$149))))-ROW($H$140),1))*D149/(INDEX($D$141:$D$149,(MIN(IF(ISERROR($H$141:$H$149),ROW($H$150),ROW($H$141:$H$149))))-ROW($H$140),1)) ->  | G149: 0
H151: Moyenne : | I151: =AVERAGE(I141:I149) ->  | J151: =AVERAGE(J141:J149) -> 

Sheet Fioul Année
F1: Analyse des consommations de chauffage (Fioul)
D2: =IF(Accueil!A3=2,"","Attention, vous avez spécifié sur la page Accueil être en chauffage collectif AVEC eau chaude sanitaire") -> Attention, vous avez spécifié sur la page Accueil être en chauffage collectif AVEC eau chaude sanitaire
C3: Année | D3: Quantité en début de saison (litres) | E3: Livraisons (litres) | F3: Quantité en fin de saison (litres) | G3: Facture Chauffage (€ TTC) | H3: Surface habitable chauffée (m2) | I3: Période de chauffe (jj/mm/aaaa)
I4: Fermeture | J4: Ouverture
C5: 2009 | K5: =IF(OR(AND(I5="",J5<>""),AND(I5<>"",J5="")),"Veuillez remplir les deux dates",IF(AND(I5="",J5=""),"",IF(AND((YEAR(I5))=C5,(YEAR(J5))=C5),"",CONCATENATE("Attention, les dates de la 'période de chauffe' ne correspondent pas à ",C5) ))) -> 
C6: 2010
C7: 2011
C8: 2012
C9: 2013
C10: 2014
C11: 2015
C12: 2016
D36: Année | E36: Consommation totale (litres) | F36: Consommation Chauffage (kWh PCI) | G36: Consommation chauffage par DJU | H36: Simulation consommation chauffage sans dérive (kWh) | I36: Consommation relative (kWh/m2) | J36: Nombre de DJU | K36: Evolution prix du kWh
D37: =C5 -> 2009 | E37: =D5+E5-F5 -> 0 | F37: =E37*9.97 -> 0 | G37: =IF(E5<>"",F37/J37,#N/A) ->  | H37: =(INDEX($F$37:$F$45,(MIN(IF(ISBLANK($E$5:$E$13),ROW($E$14),ROW($E$5:$E$13))))-ROW($I$4),1))*J37/(INDEX($J$37:$J$45,(MIN(IF(ISBLANK($E$5:$E$13),ROW($E$14),ROW($E$5:$E$13))))-ROW($I$4),1)) ->  | I37: =IF(F37=0,"",F37/H5) ->  | J37: =IF(OR(I5="",J5=""), "Dates de chauffe à renseigner", SUM(INDEX('DJU Montsouris'!B:B,MATCH(DATE(YEAR(I5),1,1),'DJU Montsouris'!A:A,0),1):INDEX('DJU Montsouris'!B:B,MATCH(I5,'DJU Montsouris'!A:A,0),1),INDEX('DJU Montsouris'!B:B,MATCH(J5,'DJU Montsouris'!A:A,0),1):INDEX('DJU Montsouris'!B:B,MATCH(DATE(YEAR(I5),12,31),'DJU Montsouris'!A:A,0),1))) -> Dates de chauffe à renseigner | K37: =IF(AND(G5<>"",F37<>0),G5/F37*100,#N/A) -> 
D38: 2010 | E38: =D6+E6-F6 -> 0 | F38: =E38*9.97 -> 0 | G38: =IF(E6<>"",F38/J38,#N/A) ->  | H38: =(INDEX($F$37:$F$45,(MIN(IF(ISBLANK($E$5:$E$13),ROW($E$14),ROW($E$5:$E$13))))-ROW($I$4),1))*J38/(INDEX($J$37:$J$45,(MIN(IF(ISBLANK($E$5:$E$13),ROW($E$14),ROW($E$5:$E$13))))-ROW($I$4),1)) ->  | I38: =IF(F38=0,"",F38/H6) ->  | J38: =IF(OR(I6="",J6=""), "Dates de chauffe à renseigner", SUM(INDEX('DJU Montsouris'!B:B,MATCH(DATE(YEAR(I6),1,1),'DJU Montsouris'!A:A,0),1):INDEX('DJU Montsouris'!B:B,MATCH(I6,'DJU Montsouris'!A:A,0),1),INDEX('DJU Montsouris'!B:B,MATCH(J6,'DJU Montsouris'!A:A,0),1):INDEX('DJU Montsouris'!B:B,MATCH(DATE(YEAR(I6),12,31),'DJU Montsouris'!A:A,0),1))) -> Dates de chauffe à renseigner | K38: =IF(AND(G6<>"",F38<>0),G6/F38*100,#N/A) -> 
D39: 2011 | E39: 0 | F39: 0 | G39: =IF(E7<>"",F39/J39,#N/A) ->  | H39: =(INDEX($F$37:$F$45,(MIN(IF(ISBLANK($E$5:$E$13),ROW($E$14),ROW($E$5:$E$13))))-ROW($I$4),1))*J39/(INDEX($J$37:$J$45,(MIN(IF(ISBLANK($E$5:$E$13),ROW($E$14),ROW($E$5:$E$13))))-ROW($I$4),1)) ->  | I39: =IF(F39=0,"",F39/H7) ->  | J39: =IF(OR(I7="",J7=""), "Dates de chauffe à renseigner", SUM(INDEX('DJU Montsouris'!B:B,MATCH(DATE(YEAR(I7),1,1),'DJU Montsouris'!A:A,0),1):INDEX('DJU Montsouris'!B:B,MATCH(I7,'DJU Montsouris'!A:A,0),1),INDEX('DJU Montsouris'!B:B,MATCH(J7,'DJU Montsouris'!A:A,0),1):INDEX('DJU Montsouris'!B:B,MATCH(DATE(YEAR(I7),12,31),'DJU Montsouris'!A:A,0),1))) -> Dates de chauffe à renseigner | K39: =IF(AND(G7<>"",F39<>0),G7/F39*100,#N/A) -> 
D40: 2012 | E40: 0 | F40: 0 | H40: =(INDEX($F$37:$F$45,(MIN(IF(ISBLANK($E$5:$E$13),ROW($E$14),ROW($E$5:$E$13))))-ROW($I$4),1))*J40/(INDEX($J$37:$J$45,(MIN(IF(ISBLANK($E$5:$E$13),ROW($E$14),ROW($E$5:$E$13))))-ROW($I$4),1)) ->  | J40: =IF(OR(I8="",J8=""), "Dates de chauffe à renseigner", SUM(INDEX('DJU Montsouris'!B:B,MATCH(DATE(YEAR(I8),1,1),'DJU Montsouris'!A:A,0),1):INDEX('DJU Montsouris'!B:B,MATCH(I8,'DJU Montsouris'!A:A,0),1),INDEX('DJU Montsouris'!B:B,MATCH(J8,'DJU Montsouris'!A:A,0),1):INDEX('DJU Montsouris'!B:B,MATCH(DATE(YEAR(I8),12,31),'DJU Montsouris'!A:A,0),1))) -> Dates de chauffe à renseigner
D41: 2013 | E41: 0 | F41: 0 | H41: =(INDEX($F$37:$F$45,(MIN(IF(ISBLANK($E$5:$E$13),ROW($E$14),ROW($E$5:$E$13))))-ROW($I$4),1))*J41/(INDEX($J$37:$J$45,(MIN(IF(ISBLANK($E$5:$E$13),ROW($E$14),ROW($E$5:$E$13))))-ROW($I$4),1)) ->  | J41: =IF(OR(I9="",J9=""), "Dates de chauffe à renseigner", SUM(INDEX('DJU Montsouris'!B:B,MATCH(DATE(YEAR(I9),1,1),'DJU Montsouris'!A:A,0),1):INDEX('DJU Montsouris'!B:B,MATCH(I9,'DJU Montsouris'!A:A,0),1),INDEX('DJU Montsouris'!B:B,MATCH(J9,'DJU Montsouris'!A:A,0),1):INDEX('DJU Montsouris'!B:B,MATCH(DATE(YEAR(I9),12,31),'DJU Montsouris'!A:A,0),1))) -> Dates de chauffe à renseigner
D42: 2014 | E42: 0 | F42: 0 | H42: =(INDEX($F$37:$F$45,(MIN(IF(ISBLANK($E$5:$E$13),ROW($E$14),ROW($E$5:$E$13))))-ROW($I$4),1))*J42/(INDEX($J$37:$J$45,(MIN(IF(ISBLANK($E$5:$E$13),ROW($E$14),ROW($E$5:$E$13))))-ROW($I$4),1)) ->  | J42: =IF(OR(I10="",J10=""), "Dates de chauffe à renseigner", SUM(INDEX('DJU Montsouris'!B:B,MATCH(DATE(YEAR(I10),1,1),'DJU Montsouris'!A:A,0),1):INDEX('DJU Montsouris'!B:B,MATCH(I10,'DJU Montsouris'!A:A,0),1),INDEX('DJU Montsouris'!B:B,MATCH(J10,'DJU Montsouris'!A:A,0),1):INDEX('DJU Montsouris'!B:B,MATCH(DATE(YEAR(I10),12,31),'DJU Montsouris'!A:A,0),1))) -> Dates de chauffe à renseigner
D43: 2015 | E43: 0 | F43: 0 | H43: =(INDEX($F$37:$F$45,(MIN(IF(ISBLANK($E$5:$E$13),ROW($E$14),ROW($E$5:$E$13))))-ROW($I$4),1))*J43/(INDEX($J$37:$J$45,(MIN(IF(ISBLANK($E$5:$E$13),ROW($E$14),ROW($E$5:$E$13))))-ROW($I$4),1)) ->  | J43: =IF(OR(I11="",J11=""), "Dates de chauffe à renseigner", SUM(INDEX('DJU Montsouris'!B:B,MATCH(DATE(YEAR(I11),1,1),'DJU Montsouris'!A:A,0),1):INDEX('DJU Montsouris'!B:B,MATCH(I11,'DJU Montsouris'!A:A,0),1),INDEX('DJU Montsouris'!B:B,MATCH(J11,'DJU Montsouris'!A:A,0),1):INDEX('DJU Montsouris'!B:B,MATCH(DATE(YEAR(I11),12,31),'DJU Montsouris'!A:A,0),1))) -> Dates de chauffe à renseigner
D44: 2016 | E44: 0 | F44: 0 | H44: =(INDEX($F$37:$F$45,(MIN(IF(ISBLANK($E$5:$E$13),ROW($E$14),ROW($E$5:$E$13))))-ROW($I$4),1))*J44/(INDEX($J$37:$J$45,(MIN(IF(ISBLANK($E$5:$E$13),ROW($E$14),ROW($E$5:$E$13))))-ROW($I$4),1)) ->  | J44: =IF(OR(I12="",J12=""), "Dates de chauffe à renseigner", SUM(INDEX('DJU Montsouris'!B:B,MATCH(DATE(YEAR(I12),1,1),'DJU Montsouris'!A:A,0),1):INDEX('DJU Montsouris'!B:B,MATCH(I12,'DJU Montsouris'!A:A,0),1),INDEX('DJU Montsouris'!B:B,MATCH(J12,'DJU Montsouris'!A:A,0),1):INDEX('DJU Montsouris'!B:B,MATCH(DATE(YEAR(I12),12,31),'DJU Montsouris'!A:A,0),1))) -> Dates de chauffe à renseigner
D45: 0 | E45: 0 | F45: 0 | H45: =(INDEX($F$37:$F$45,(MIN(IF(ISBLANK($E$5:$E$13),ROW($E$14),ROW($E$5:$E$13))))-ROW($I$4),1))*J45/(INDEX($J$37:$J$45,(MIN(IF(ISBLANK($E$5:$E$13),ROW($E$14),ROW($E$5:$E$13))))-ROW($I$4),1)) ->  | J45: =IF(OR(I13="",J13=""), "Dates de chauffe à renseigner", SUM(INDEX('DJU Montsouris'!B:B,MATCH(DATE(YEAR(I13),1,1),'DJU Montsouris'!A:A,0),1):INDEX('DJU Montsouris'!B:B,MATCH(I13,'DJU Montsouris'!A:A,0),1),INDEX('DJU Montsouris'!B:B,MATCH(J13,'DJU Montsouris'!A:A,0),1):INDEX('DJU Montsouris'!B:B,MATCH(DATE(YEAR(I13),12,31),'DJU Montsouris'!A:A,0),1))) -> Dates de chauffe à renseigner
H47: Moyenne : | I47: =AVERAGE(I37:I45) -> 
F100: Analyse des consommations de chauffage et d'ECS (Fioul)
D101: =IF(Accueil!A3=1,"","Attention, vous avez spécifié sur la page Accueil être en chauffage collectif SANS eau chaude sanitaire") -> 
B102: Année | C102: Quantité en début de saison (litres) | D102: Livraison (litres) | E102: Quantité en fin de saison (litres) | F102: Consommation d'ECS (m3) | G102: Facture (€ TTC) | H102: Surface habitable chauffée (m2) | I102: Période de chauffe
I103: Fermeture | J103: Ouverture
B104: 2009 | K104: =IF(OR(AND(I104="",J104<>""),AND(I104<>"",J104="")),"Veuillez remplir les deux dates",IF(AND(I104="",J104=""),"",IF(AND((YEAR(I104))=B104,(YEAR(J104))=B104),"",CONCATENATE("Attention, les dates de la 'période de chauffe' ne correspondent pas à ",B104) ))) -> 
B105: 2010 | K105: =IF(OR(AND(I105="",J105<>""),AND(I105<>"",J105="")),"Veuillez remplir les deux dates",IF(AND(I105="",J105=""),"",IF(AND((YEAR(I105))=B105,(YEAR(J105))=B105),"",CONCATENATE("Attention, les dates de la 'période de chauffe' ne correspondent pas à ",B105) ))) -> 
B106: 2011
B107: 2012
B108: 2013
B109: 2014
B110: 2015
B111: 2016
C145: Consommation totale (litres) | D145: Consommation totale (kWh) | E145: Nombre de DJU | F145: Consommation chauffage par DJU | G145: Simulation consommation chauffage sans dérive (kWh) | H145: Consommation d'énergie ECS (kWh) | I145: Consommation chauffage (kWh) | J145: Consommation chauffage + ECS (kWh/m2) | K145: Consommation chauffage (kWh/m2) | L145: Evolution prix du kWh
C146: =C104+D104-E104 -> 0 | D146: =C146*9.97 -> 0 | E146: =IF(OR(I104="",J104=""), "Dates de chauffe à renseigner", SUM(INDEX('DJU Montsouris'!B:B,MATCH(DATE(YEAR(I104),1,1),'DJU Montsouris'!A:A,0),1):INDEX('DJU Montsouris'!B:B,MATCH(I104,'DJU Montsouris'!A:A,0),1),INDEX('DJU Montsouris'!B:B,MATCH(J104,'DJU Montsouris'!A:A,0),1):INDEX('DJU Montsouris'!B:B,MATCH(DATE(YEAR(I104),12,31),'DJU Montsouris'!A:A,0),1))) -> Dates de chauffe à renseigner | F146: =IF(I146=0,#N/A,I146/E146) ->  | G146: =(INDEX($I$146:$I$154,(MIN(IF(ISBLANK($D$104:$D$112),ROW($D$113),ROW($D$104:$D$112))))-ROW($I$103),1))*E146/(INDEX($E$146:$E$154,(MIN(IF(ISBLANK($D$104:$D$112),ROW($D$113),ROW($D$104:$D$112))))-ROW($I$103),1)) ->  | H146: =120*F104 -> 0 | I146: =D146-H146 -> 0 | J146: =IF(D146=0,"",D146/H104) ->  | K146: =IF(I146=0,"",I146/H104) ->  | L146: =IF(AND(G104<>"",D146<>0),G104/D146*100,#N/A) -> 
C147: 0 | D147: =C147*9.97 -> 0 | E147: =IF(OR(I105="",J105=""), "Dates de chauffe à renseigner", SUM(INDEX('DJU Montsouris'!B:B,MATCH(DATE(YEAR(I105),1,1),'DJU Montsouris'!A:A,0),1):INDEX('DJU Montsouris'!B:B,MATCH(I105,'DJU Montsouris'!A:A,0),1),INDEX('DJU Montsouris'!B:B,MATCH(J105,'DJU Montsouris'!A:A,0),1):INDEX('DJU Montsouris'!B:B,MATCH(DATE(YEAR(I105),12,31),'DJU Montsouris'!A:A,0),1))) -> Dates de chauffe à renseigner | F147: =IF(I147=0,#N/A,I147/E147) ->  | G147: =(INDEX($I$146:$I$154,(MIN(IF(ISBLANK($D$104:$D$112),ROW($D$113),ROW($D$104:$D$112))))-ROW($I$103),1))*E147/(INDEX($E$146:$E$154,(MIN(IF(ISBLANK($D$104:$D$112),ROW($D$113),ROW($D$104:$D$112))))-ROW($I$103),1)) ->  | H147: 0 | I147: =D147-H147 -> 0
C148: 0 | D148: 0 | E148: =IF(OR(I106="",J106=""), "Dates de chauffe à renseigner", SUM(INDEX('DJU Montsouris'!B:B,MATCH(DATE(YEAR(I106),1,1),'DJU Montsouris'!A:A,0),1):INDEX('DJU Montsouris'!B:B,MATCH(I106,'DJU Montsouris'!A:A,0),1),INDEX('DJU Montsouris'!B:B,MATCH(J106,'DJU Montsouris'!A:A,0),1):INDEX('DJU Montsouris'!B:B,MATCH(DATE(YEAR(I106),12,31),'DJU Montsouris'!A:A,0),1))) -> Dates de chauffe à renseigner | F148: =IF(I148=0,#N/A,I148/E148) ->  | G148: =(INDEX($I$146:$I$154,(MIN(IF(ISBLANK($D$104:$D$112),ROW($D$113),ROW($D$104:$D$112))))-ROW($I$103),1))*E148/(INDEX($E$146:$E$154,(MIN(IF(ISBLANK($D$104:$D$112),ROW($D$113),ROW($D$104:$D$112))))-ROW($I$103),1)) ->  | H148: 0 | I148: 0
C149: 0 | D149: 0 | E149: =IF(OR(I107="",J107=""), "Dates de chauffe à renseigner", SUM(INDEX('DJU Montsouris'!B:B,MATCH(DATE(YEAR(I107),1,1),'DJU Montsouris'!A:A,0),1):INDEX('DJU Montsouris'!B:B,MATCH(I107,'DJU Montsouris'!A:A,0),1),INDEX('DJU Montsouris'!B:B,MATCH(J107,'DJU Montsouris'!A:A,0),1):INDEX('DJU Montsouris'!B:B,MATCH(DATE(YEAR(I107),12,31),'DJU Montsouris'!A:A,0),1))) -> Dates de chauffe à renseigner | G149: =(INDEX($I$146:$I$154,(MIN(IF(ISBLANK($D$104:$D$112),ROW($D$113),ROW($D$104:$D$112))))-ROW($I$103),1))*E149/(INDEX($E$146:$E$154,(MIN(IF(ISBLANK($D$104:$D$112),ROW($D$113),ROW($D$104:$D$112))))-ROW($I$103),1)) ->  | H149: 0 | I149: 0
C150: 0 | D150: 0 | E150: =IF(OR(I108="",J108=""), "Dates de chauffe à renseigner", SUM(INDEX('DJU Montsouris'!B:B,MATCH(DATE(YEAR(I108),1,1),'DJU Montsouris'!A:A,0),1):INDEX('DJU Montsouris'!B:B,MATCH(I108,'DJU Montsouris'!A:A,0),1),INDEX('DJU Montsouris'!B:B,MATCH(J108,'DJU Montsouris'!A:A,0),1):INDEX('DJU Montsouris'!B:B,MATCH(DATE(YEAR(I108),12,31),'DJU Montsouris'!A:A,0),1))) -> Dates de chauffe à renseigner | G150: =(INDEX($I$146:$I$154,(MIN(IF(ISBLANK($D$104:$D$112),ROW($D$113),ROW($D$104:$D$112))))-ROW($I$103),1))*E150/(INDEX($E$146:$E$154,(MIN(IF(ISBLANK($D$104:$D$112),ROW($D$113),ROW($D$104:$D$112))))-ROW($I$103),1)) ->  | H150: 0 | I150: 0
C151: 0 | D151: 0 | E151: =IF(OR(I109="",J109=""), "Dates de chauffe à renseigner", SUM(INDEX('DJU Montsouris'!B:B,MATCH(DATE(YEAR(I109),1,1),'DJU Montsouris'!A:A,0),1):INDEX('DJU Montsouris'!B:B,MATCH(I109,'DJU Montsouris'!A:A,0),1),INDEX('DJU Montsouris'!B:B,MATCH(J109,'DJU Montsouris'!A:A,0),1):INDEX('DJU Montsouris'!B:B,MATCH(DATE(YEAR(I109),12,31),'DJU Montsouris'!A:A,0),1))) -> Dates de chauffe à renseigner | G151: =(INDEX($I$146:$I$154,(MIN(IF(ISBLANK($D$104:$D$112),ROW($D$113),ROW($D$104:$D$112))))-ROW($I$103),1))*E151/(INDEX($E$146:$E$154,(MIN(IF(ISBLANK($D$104:$D$112),ROW($D$113),ROW($D$104:$D$112))))-ROW($I$103),1)) ->  | H151: 0 | I151: 0
C152: 0 | D152: 0 | E152: =IF(OR(I110="",J110=""), "Dates de chauffe à renseigner", SUM(INDEX('DJU Montsouris'!B:B,MATCH(DATE(YEAR(I110),1,1),'DJU Montsouris'!A:A,0),1):INDEX('DJU Montsouris'!B:B,MATCH(I110,'DJU Montsouris'!A:A,0),1),INDEX('DJU Montsouris'!B:B,MATCH(J110,'DJU Montsouris'!A:A,0),1):INDEX('DJU Montsouris'!B:B,MATCH(DATE(YEAR(I110),12,31),'DJU Montsouris'!A:A,0),1))) -> Dates de chauffe à renseigner | G152: =(INDEX($I$146:$I$154,(MIN(IF(ISBLANK($D$104:$D$112),ROW($D$113),ROW($D$104:$D$112))))-ROW($I$103),1))*E152/(INDEX($E$146:$E$154,(MIN(IF(ISBLANK($D$104:$D$112),ROW($D$113),ROW($D$104:$D$112))))-ROW($I$103),1)) ->  | H152: 0 | I152: 0
C153: 0 | D153: 0 | E153: =IF(OR(I111="",J111=""), "Dates de chauffe à renseigner", SUM(INDEX('DJU Montsouris'!B:B,MATCH(DATE(YEAR(I111),1,1),'DJU Montsouris'!A:A,0),1):INDEX('DJU Montsouris'!B:B,MATCH(I111,'DJU Montsouris'!A:A,0),1),INDEX('DJU Montsouris'!B:B,MATCH(J111,'DJU Montsouris'!A:A,0),1):INDEX('DJU Montsouris'!B:B,MATCH(DATE(YEAR(I111),12,31),'DJU Montsouris'!A:A,0),1))) -> Dates de chauffe à renseigner | G153: =(INDEX($I$146:$I$154,(MIN(IF(ISBLANK($D$104:$D$112),ROW($D$113),ROW($D$104:$D$112))))-ROW($I$103),1))*E153/(INDEX($E$146:$E$154,(MIN(IF(ISBLANK($D$104:$D$112),ROW($D$113),ROW($D$104:$D$112))))-ROW($I$103),1)) ->  | H153: 0 | I153: 0
C154: 0 | D154: 0 | E154: =IF(OR(I112="",J112=""), "Dates de chauffe à renseigner", SUM(INDEX('DJU Montsouris'!B:B,MATCH(DATE(YEAR(I112),1,1),'DJU Montsouris'!A:A,0),1):INDEX('DJU Montsouris'!B:B,MATCH(I112,'DJU Montsouris'!A:A,0),1),INDEX('DJU Montsouris'!B:B,MATCH(J112,'DJU Montsouris'!A:A,0),1):INDEX('DJU Montsouris'!B:B,MATCH(DATE(YEAR(I112),12,31),'DJU Montsouris'!A:A,0),1))) -> Dates de chauffe à renseigner | G154: =(INDEX($I$146:$I$154,(MIN(IF(ISBLANK($D$104:$D$112),ROW($D$113),ROW($D$104:$D$112))))-ROW($I$103),1))*E154/(INDEX($E$146:$E$154,(MIN(IF(ISBLANK($D$104:$D$112),ROW($D$113),ROW($D$104:$D$112))))-ROW($I$103),1)) ->  | H154: 0 | I154: 0
I156: Moyenne : | J156: =AVERAGE(J146:J154) ->  | K156: =AVERAGE(K146:K154) -> 

Sheet Fioul Saison de chauffe
F1: Analyse des consommations de chauffage (Fioul)
D2: =IF(Accueil!A3=2,"","Attention, vous avez spécifié sur la page Accueil être en chauffage collectif AVEC eau chaude sanitaire") -> Attention, vous avez spécifié sur la page Accueil être en chauffage collectif AVEC eau chaude sanitaire
C3: Saison de chauffe | E3: Quantité en début de saison (litres) | F3: Livraisons (litres) | G3: Quantité en fin de saison (litres) | H3: Facture Chauffage (€ TTC) | I3: Surface habitable chauffée (m2) | J3: Période de chauffe (jj/mm/aaaa)
J4: Ouverture | K4: Fermeture
C5: 2008 | D5: 2009 | L5: =IF(OR(AND(J5="",K5<>""),AND(J5<>"",K5="")), "Veuillez remplir les deux dates", IF(AND(J5="",K5=""),"",IF(AND((YEAR(J5))=C5,(YEAR(K5))=D5),"","Attention, les dates 'Saison de chauffe' et 'période de chauffe' sont différentes"))) -> 
C6: 2009 | D6: 2010
C7: 2010 | D7: 2011
C8: 2011 | D8: 2012
C9: 2012 | D9: 2013
C10: 2013 | D10: 2014
C11: 2014 | D11: 2015
C12: 2015 | D12: 2016
D36: Saison de chauffe | E36: Consommation totale (litres) | F36: Consommation Chauffage (kWh PCI) | G36: Consommation chauffage par DJU | H36: Simulation consommation chauffage sans dérive (kWh) | I36: Consommation relative (kWh/m2) | J36: Nombre de DJU | K36: Evolution prix du kWh (c€/kWh)
D37: =C5&"/"&D5 -> 2008/2009 | E37: =E5+F5-G5 -> 0 | F37: =E37*9.97 -> 0 | G37: =IF(F5="",#N/A,F37/J37) ->  | H37: =(INDEX($F$37:$F$45,(MIN(IF(ISBLANK($F$5:$F$13),14,ROW($F$5:$F$13))))-4,1))*J37/(INDEX($J$37:$J$45,(MIN(IF(ISBLANK($F$5:$F$13),14,ROW($F$5:$F$13))))-4,1)) ->  | I37: =IF(F37=0,"",F37/I5) ->  | J37: =IF(OR(J5="",K5=""), "Dates de chauffe à renseigner", SUM(INDEX('DJU Montsouris'!B:B,MATCH(J5,'DJU Montsouris'!A:A,0),1):INDEX('DJU Montsouris'!B:B,MATCH(K5,'DJU Montsouris'!A:A,0),1))) -> Dates de chauffe à renseigner | K37: =IF(AND(F37<>"",H5<>""),H5/F37*100,#N/A) -> 
D38: =C6&"/"&D6 -> 2009/2010 | E38: 0 | F38: =E38*9.97 -> 0 | H38: =(INDEX($F$37:$F$45,(MIN(IF(ISBLANK($F$5:F$13),14,ROW($F$5:F$13))))-4,1))*J38/(INDEX($J$37:$J$45,(MIN(IF(ISBLANK($F$5:F$13),14,ROW($F$5:F$13))))-4,1)) ->  | I38: =IF(F38=0,"",F38/I6) ->  | J38: =IF(OR(J6="",K6=""), "Dates de chauffe à renseigner", SUM(INDEX('DJU Montsouris'!B:B,MATCH(J6,'DJU Montsouris'!A:A,0),1):INDEX('DJU Montsouris'!B:B,MATCH(K6,'DJU Montsouris'!A:A,0),1))) -> Dates de chauffe à renseigner | K38: =IF(AND(F38<>"",H6<>""),H6/F38*100,#N/A) -> 
D39: 2010/2011 | E39: 0 | F39: 0 | H39: =(INDEX($F$37:$F$45,(MIN(IF(ISBLANK($F$5:F$13),14,ROW($F$5:F$13))))-4,1))*J39/(INDEX($J$37:$J$45,(MIN(IF(ISBLANK($F$5:F$13),14,ROW($F$5:F$13))))-4,1)) ->  | I39: =IF(F39=0,"",F39/I7) ->  | J39: =IF(OR(J7="",K7=""), "Dates de chauffe à renseigner", SUM(INDEX('DJU Montsouris'!B:B,MATCH(J7,'DJU Montsouris'!A:A,0),1):INDEX('DJU Montsouris'!B:B,MATCH(K7,'DJU Montsouris'!A:A,0),1))) -> Dates de chauffe à renseigner
D40: 2011/2012 | E40: 0 | F40: 0 | H40: =(INDEX($F$37:$F$45,(MIN(IF(ISBLANK($F$5:F$13),14,ROW($F$5:F$13))))-4,1))*J40/(INDEX($J$37:$J$45,(MIN(IF(ISBLANK($F$5:F$13),14,ROW($F$5:F$13))))-4,1)) ->  | J40: =IF(OR(J8="",K8=""), "Dates de chauffe à renseigner", SUM(INDEX('DJU Montsouris'!B:B,MATCH(J8,'DJU Montsouris'!A:A,0),1):INDEX('DJU Montsouris'!B:B,MATCH(K8,'DJU Montsouris'!A:A,0),1))) -> Dates de chauffe à renseigner
D41: 2012/2013 | E41: 0 | F41: 0 | H41: =(INDEX($F$37:$F$45,(MIN(IF(ISBLANK($F$5:F$13),14,ROW($F$5:F$13))))-4,1))*J41/(INDEX($J$37:$J$45,(MIN(IF(ISBLANK($F$5:F$13),14,ROW($F$5:F$13))))-4,1)) ->  | J41: =IF(OR(J9="",K9=""), "Dates de chauffe à renseigner", SUM(INDEX('DJU Montsouris'!B:B,MATCH(J9,'DJU Montsouris'!A:A,0),1):INDEX('DJU Montsouris'!B:B,MATCH(K9,'DJU Montsouris'!A:A,0),1))) -> Dates de chauffe à renseigner
D42: 2013/2014 | E42: 0 | F42: 0 | H42: =(INDEX($F$37:$F$45,(MIN(IF(ISBLANK($F$5:F$13),14,ROW($F$5:F$13))))-4,1))*J42/(INDEX($J$37:$J$45,(MIN(IF(ISBLANK($F$5:F$13),14,ROW($F$5:F$13))))-4,1)) ->  | J42: =IF(OR(J10="",K10=""), "Dates de chauffe à renseigner", SUM(INDEX('DJU Montsouris'!B:B,MATCH(J10,'DJU Montsouris'!A:A,0),1):INDEX('DJU Montsouris'!B:B,MATCH(K10,'DJU Montsouris'!A:A,0),1))) -> Dates de chauffe à renseigner
D43: 2014/2015 | E43: 0 | F43: 0 | H43: =(INDEX($F$37:$F$45,(MIN(IF(ISBLANK($F$5:F$13),14,ROW($F$5:F$13))))-4,1))*J43/(INDEX($J$37:$J$45,(MIN(IF(ISBLANK($F$5:F$13),14,ROW($F$5:F$13))))-4,1)) ->  | J43: =IF(OR(J11="",K11=""), "Dates de chauffe à renseigner", SUM(INDEX('DJU Montsouris'!B:B,MATCH(J11,'DJU Montsouris'!A:A,0),1):INDEX('DJU Montsouris'!B:B,MATCH(K11,'DJU Montsouris'!A:A,0),1))) -> Dates de chauffe à renseigner
D44: 2015/2016 | E44: 0 | F44: 0 | H44: =(INDEX($F$37:$F$45,(MIN(IF(ISBLANK($F$5:F$13),14,ROW($F$5:F$13))))-4,1))*J44/(INDEX($J$37:$J$45,(MIN(IF(ISBLANK($F$5:F$13),14,ROW($F$5:F$13))))-4,1)) ->  | J44: =IF(OR(J12="",K12=""), "Dates de chauffe à renseigner", SUM(INDEX('DJU Montsouris'!B:B,MATCH(J12,'DJU Montsouris'!A:A,0),1):INDEX('DJU Montsouris'!B:B,MATCH(K12,'DJU Montsouris'!A:A,0),1))) -> Dates de chauffe à renseigner
D45: / | E45: 0 | F45: 0 | H45: =(INDEX($F$37:$F$45,(MIN(IF(ISBLANK($F$5:F$13),14,ROW($F$5:F$13))))-4,1))*J45/(INDEX($J$37:$J$45,(MIN(IF(ISBLANK($F$5:F$13),14,ROW($F$5:F$13))))-4,1)) ->  | J45: =IF(OR(J13="",K13=""), "Dates de chauffe à renseigner", SUM(INDEX('DJU Montsouris'!B:B,MATCH(J13,'DJU Montsouris'!A:A,0),1):INDEX('DJU Montsouris'!B:B,MATCH(K13,'DJU Montsouris'!A:A,0),1))) -> Dates de chauffe à renseigner
H47: Moyenne : | I47: =AVERAGE(I37:I45) -> 
F98: Analyse des consommations de chauffage et d'ECS (Fioul)
D100: =IF(Accueil!A3=1,"","Attention, vous avez spécifié sur la page Accueil être en chauffage collectif SANS eau chaude sanitaire") -> 
B101: Saison de chauffe | D101: Quantité en début de saison (litres) | E101: Livraison (litres) | F101: Quantité en fin de saison (litres) | G101: Consommation d'ECS (m3) | H101: Facture (€ TTC) | I101: Surface habitable chauffée (m2) | J101: Période de chauffe
J102: Ouverture | K102: Fermeture
B103: 2008 | C103: 2009 | L103: =IF(OR(AND(J103="",K103<>""),AND(J103<>"",K103="")), "Veuillez remplir les deux dates", IF(AND(J103="",K103=""),"",IF(AND((YEAR(J103))=B103,(YEAR(K103))=C103),"","Attention, les dates 'Saison de chauffe' et 'période de chauffe' sont différentes"))) -> 
B104: 2009 | C104: 2010 | L104: =IF(OR(AND(J104="",K104<>""),AND(J104<>"",K104="")), "Veuillez remplir les deux dates", IF(AND(J104="",K104=""),"",IF(AND((YEAR(J104))=B104,(YEAR(K104))=C104),"","Attention, les dates 'Saison de chauffe' et 'période de chauffe' sont différentes"))) -> 
B105: 2010 | C105: 2011
B106: 2011 | C106: 2012
B107: 2012 | C107: 2013
B108: 2013 | C108: 2014
B109: 2014 | C109: 2015
B110: 2015 | C110: 2016
C143: Saison | D143: Consommation totale (litres) | E143: Consommation totale (kWh) | F143: Nombre de DJU | G143: Consommation chauffage par DJU | H143: Simulation consommation chauffage sans dérive (kWh) | I143: Consommation d'énergie ECS (kWh) | J143: Consommation chauffage (kWh) | K143: Consommation chauffage + ECS (kWh/m2) | L143: Consommation chauffage (kWh/m2) | M143: Evolution prix du kWh
C144: =B103&"/"&C103 -> 2008/2009 | D144: =D103+E103-F103 -> 0 | E144: =D144*9.97 -> 0 | F144: =IF(OR(J103="",K103=""), "Dates de chauffe à renseigner", SUM(INDEX('DJU Montsouris'!B:B,MATCH(J103,'DJU Montsouris'!A:A,0),1):INDEX('DJU Montsouris'!B:B,MATCH(K103,'DJU Montsouris'!A:A,0),1))) -> Dates de chauffe à renseigner | G144: =IF(J144=0,#N/A,J144/F144) ->  | H144: =(INDEX($J$144:$J$152,(MIN(IF(ISBLANK($E$103:$E$111),ROW($E$112),ROW($E$103:$E$111))))-ROW($J$102),1))*F144/(INDEX($F$144:$F$152,(MIN(IF(ISBLANK($E$103:$E$111),ROW($E$112),ROW($E$103:$E$111))))-ROW($J$102),1)) ->  | I144: =120*G103 -> 0 | J144: =E144-I144 -> 0 | K144: =IF(E144=0,"",E144/I103) ->  | L144: =IF(J144=0,"",J144/I103) ->  | M144: =IF(AND(E144<>0,H103<>""),H103/E144*100,#N/A) -> 
C145: =B104&"/"&C104 -> 2009/2010 | D145: 0 | E145: =D145*9.97 -> 0 | F145: =IF(OR(J104="",K104=""), "Dates de chauffe à renseigner", SUM(INDEX('DJU Montsouris'!B:B,MATCH(J104,'DJU Montsouris'!A:A,0),1):INDEX('DJU Montsouris'!B:B,MATCH(K104,'DJU Montsouris'!A:A,0),1))) -> Dates de chauffe à renseigner | G145: =IF(J145=0,#N/A,J145/F145) ->  | H145: =(INDEX($J$144:$J$152,(MIN(IF(ISBLANK($E$103:$E$111),ROW($E$112),ROW($E$103:$E$111))))-ROW($J$102),1))*F145/(INDEX($F$144:$F$152,(MIN(IF(ISBLANK($E$103:$E$111),ROW($E$112),ROW($E$103:$E$111))))-ROW($J$102),1)) ->  | I145: 0 | J145: =E145-I145 -> 0
C146: 2010/2011 | D146: 0 | E146: 0 | F146: =IF(OR(J105="",K105=""), "Dates de chauffe à renseigner", SUM(INDEX('DJU Montsouris'!B:B,MATCH(J105,'DJU Montsouris'!A:A,0),1):INDEX('DJU Montsouris'!B:B,MATCH(K105,'DJU Montsouris'!A:A,0),1))) -> Dates de chauffe à renseigner | G146: =IF(J146=0,#N/A,J146/F146) ->  | H146: =(INDEX($J$144:$J$152,(MIN(IF(ISBLANK($E$103:$E$111),ROW($E$112),ROW($E$103:$E$111))))-ROW($J$102),1))*F146/(INDEX($F$144:$F$152,(MIN(IF(ISBLANK($E$103:$E$111),ROW($E$112),ROW($E$103:$E$111))))-ROW($J$102),1)) ->  | I146: 0 | J146: 0
C147: 2011/2012 | D147: 0 | E147: 0 | F147: =IF(OR(J106="",K106=""), "Dates de chauffe à renseigner", SUM(INDEX('DJU Montsouris'!B:B,MATCH(J106,'DJU Montsouris'!A:A,0),1):INDEX('DJU Montsouris'!B:B,MATCH(K106,'DJU Montsouris'!A:A,0),1))) -> Dates de chauffe à renseigner | H147: =(INDEX($J$144:$J$152,(MIN(IF(ISBLANK($E$103:$E$111),ROW($E$112),ROW($E$103:$E$111))))-ROW($J$102),1))*F147/(INDEX($F$144:$F$152,(MIN(IF(ISBLANK($E$103:$E$111),ROW($E$112),ROW($E$103:$E$111))))-ROW($J$102),1)) ->  | I147: 0 | J147: 0
C148: 2012/2013 | D148: 0 | E148: 0 | F148: =IF(OR(J107="",K107=""), "Dates de chauffe à renseigner", SUM(INDEX('DJU Montsouris'!B:B,MATCH(J107,'DJU Montsouris'!A:A,0),1):INDEX('DJU Montsouris'!B:B,MATCH(K107,'DJU Montsouris'!A:A,0),1))) -> Dates de chauffe à renseigner | H148: =(INDEX($J$144:$J$152,(MIN(IF(ISBLANK($E$103:$E$111),ROW($E$112),ROW($E$103:$E$111))))-ROW($J$102),1))*F148/(INDEX($F$144:$F$152,(MIN(IF(ISBLANK($E$103:$E$111),ROW($E$112),ROW($E$103:$E$111))))-ROW($J$102),1)) ->  | I148: 0 | J148: 0
C149: 2013/2014 | D149: 0 | E149: 0 | F149: =IF(OR(J108="",K108=""), "Dates de chauffe à renseigner", SUM(INDEX('DJU Montsouris'!B:B,MATCH(J108,'DJU Montsouris'!A:A,0),1):INDEX('DJU Montsouris'!B:B,MATCH(K108,'DJU Montsouris'!A:A,0),1))) -> Dates de chauffe à renseigner | H149: =(INDEX($J$144:$J$152,(MIN(IF(ISBLANK($E$103:$E$111),ROW($E$112),ROW($E$103:$E$111))))-ROW($J$102),1))*F149/(INDEX($F$144:$F$152,(MIN(IF(ISBLANK($E$103:$E$111),ROW($E$112),ROW($E$103:$E$111))))-ROW($J$102),1)) ->  | I149: 0 | J149: 0
C150: 2014/2015 | D150: 0 | E150: 0 | F150: =IF(OR(J109="",K109=""), "Dates de chauffe à renseigner", SUM(INDEX('DJU Montsouris'!B:B,MATCH(J109,'DJU Montsouris'!A:A,0),1):INDEX('DJU Montsouris'!B:B,MATCH(K109,'DJU Montsouris'!A:A,0),1))) -> Dates de chauffe à renseigner | H150: =(INDEX($J$144:$J$152,(MIN(IF(ISBLANK($E$103:$E$111),ROW($E$112),ROW($E$103:$E$111))))-ROW($J$102),1))*F150/(INDEX($F$144:$F$152,(MIN(IF(ISBLANK($E$103:$E$111),ROW($E$112),ROW($E$103:$E$111))))-ROW($J$102),1)) ->  | I150: 0 | J150: 0
C151: 2015/2016 | D151: 0 | E151: 0 | F151: =IF(OR(J110="",K110=""), "Dates de chauffe à renseigner", SUM(INDEX('DJU Montsouris'!B:B,MATCH(J110,'DJU Montsouris'!A:A,0),1):INDEX('DJU Montsouris'!B:B,MATCH(K110,'DJU Montsouris'!A:A,0),1))) -> Dates de chauffe à renseigner | H151: =(INDEX($J$144:$J$152,(MIN(IF(ISBLANK($E$103:$E$111),ROW($E$112),ROW($E$103:$E$111))))-ROW($J$102),1))*F151/(INDEX($F$144:$F$152,(MIN(IF(ISBLANK($E$103:$E$111),ROW($E$112),ROW($E$103:$E$111))))-ROW($J$102),1)) ->  | I151: 0 | J151: 0
C152: / | D152: 0 | E152: 0 | F152: =IF(OR(J111="",K111=""), "Dates de chauffe à renseigner", SUM(INDEX('DJU Montsouris'!B:B,MATCH(J111,'DJU Montsouris'!A:A,0),1):INDEX('DJU Montsouris'!B:B,MATCH(K111,'DJU Montsouris'!A:A,0),1))) -> Dates de chauffe à renseigner | H152: =(INDEX($J$144:$J$152,(MIN(IF(ISBLANK($E$103:$E$111),ROW($E$112),ROW($E$103:$E$111))))-ROW($J$102),1))*F152/(INDEX($F$144:$F$152,(MIN(IF(ISBLANK($E$103:$E$111),ROW($E$112),ROW($E$103:$E$111))))-ROW($J$102),1)) ->  | I152: 0 | J152: 0
J154: Moyenne : | K154: =AVERAGE(K144:K152) ->  | L154: =AVERAGE(L144:L152) -> 

Sheet CPCU Année
E1: Analyse des consommations de chauffage (Chauffage Urbain)
D2: =IF(Accueil!A3=2,"","Attention, vous avez spécifié sur la page Accueil être en chauffage collectif AVEC eau chaude sanitaire") -> Attention, vous avez spécifié sur la page Accueil être en chauffage collectif AVEC eau chaude sanitaire
C3: Année | D3: Consommation Chauffage (kWh) | E3: Facture Chauffage (€ TTC) | F3: Surface habitable chauffée (m2) | G3: Période de chauffe (jj/mm/aaaa)
G4: Fermeture | H4: Ouverture
C5: 2009 | I5: =IF(OR(AND(G5="",H5<>""),AND(G5<>"",H5="")),"Veuillez remplir les deux dates",IF(AND(G5="",H5=""),"",IF(AND((YEAR(G5))=C5,(YEAR(H5))=C5),"",CONCATENATE("Attention, les dates de la 'période de chauffe' ne correspondent pas à ",C5) ))) -> 
C6: 2010
C7: 2011
C8: 2012
C9: 2013
C10: 2014
C11: 2015
C12: 2016
C36: Année | D36: Consommation chauffage par DJU | E36: Simulation consommation chauffage sans dérive (kWh) | F36: Consommation relative (kWh/m2) | G36: Nombre de DJU | H36: Evolution prix du kWh
C37: =C5 -> 2009 | D37: =IF(D5<>"",D5/G37,#N/A) ->  | E37: =(INDEX($D$5:$D$13,(MIN(IF(ISBLANK($D$5:$D$13),ROW($D$14),ROW($D$5:$D$13))))-ROW($G$4),1))*G37/(INDEX($G$37:$G$45,(MIN(IF(ISBLANK($D$5:$D$13),ROW($D$14),ROW($D$5:$D$13))))-ROW($G$4),1)) ->  | F37: =IF(D5="","",D5/F5) ->  | G37: =IF(OR(G5="",H5=""), "Dates de chauffe à renseigner", SUM(INDEX('DJU Montsouris'!B:B,MATCH(DATE(YEAR(G5),1,1),'DJU Montsouris'!A:A,0),1):INDEX('DJU Montsouris'!B:B,MATCH(G5,'DJU Montsouris'!A:A,0),1),INDEX('DJU Montsouris'!B:B,MATCH(H5,'DJU Montsouris'!A:A,0),1):INDEX('DJU Montsouris'!B:B,MATCH(DATE(YEAR(G5),12,31),'DJU Montsouris'!A:A,0),1))) -> Dates de chauffe à renseigner | H37: =IF(AND(D5<>"",E5<>""),E5/D5*100,#N/A) -> 
C38: =C6 -> 2010 | D38: =IF(D6<>"",D6/G38,#N/A) ->  | E38: =(INDEX($D$5:$D$13,(MIN(IF(ISBLANK($D$5:$D$13),ROW($D$14),ROW($D$5:$D$13))))-ROW($G$4),1))*G38/(INDEX($G$37:$G$45,(MIN(IF(ISBLANK($D$5:$D$13),ROW($D$14),ROW($D$5:$D$13))))-ROW($G$4),1)) ->  | F38: =IF(D6="","",D6/F6) ->  | G38: =IF(OR(G6="",H6=""), "Dates de chauffe à renseigner", SUM(INDEX('DJU Montsouris'!B:B,MATCH(DATE(YEAR(G6),1,1),'DJU Montsouris'!A:A,0),1):INDEX('DJU Montsouris'!B:B,MATCH(G6,'DJU Montsouris'!A:A,0),1),INDEX('DJU Montsouris'!B:B,MATCH(H6,'DJU Montsouris'!A:A,0),1):INDEX('DJU Montsouris'!B:B,MATCH(DATE(YEAR(G6),12,31),'DJU Montsouris'!A:A,0),1))) -> Dates de chauffe à renseigner
C39: 2011 | E39: =(INDEX($D$5:$D$13,(MIN(IF(ISBLANK($D$5:$D$13),ROW($D$14),ROW($D$5:$D$13))))-ROW($G$4),1))*G39/(INDEX($G$37:$G$45,(MIN(IF(ISBLANK($D$5:$D$13),ROW($D$14),ROW($D$5:$D$13))))-ROW($G$4),1)) ->  | F39: =IF(D7="","",D7/F7) ->  | G39: =IF(OR(G7="",H7=""), "Dates de chauffe à renseigner", SUM(INDEX('DJU Montsouris'!B:B,MATCH(DATE(YEAR(G7),1,1),'DJU Montsouris'!A:A,0),1):INDEX('DJU Montsouris'!B:B,MATCH(G7,'DJU Montsouris'!A:A,0),1),INDEX('DJU Montsouris'!B:B,MATCH(H7,'DJU Montsouris'!A:A,0),1):INDEX('DJU Montsouris'!B:B,MATCH(DATE(YEAR(G7),12,31),'DJU Montsouris'!A:A,0),1))) -> Dates de chauffe à renseigner
C40: 2012 | E40: =(INDEX($D$5:$D$13,(MIN(IF(ISBLANK($D$5:$D$13),ROW($D$14),ROW($D$5:$D$13))))-ROW($G$4),1))*G40/(INDEX($G$37:$G$45,(MIN(IF(ISBLANK($D$5:$D$13),ROW($D$14),ROW($D$5:$D$13))))-ROW($G$4),1)) ->  | G40: =IF(OR(G8="",H8=""), "Dates de chauffe à renseigner", SUM(INDEX('DJU Montsouris'!B:B,MATCH(DATE(YEAR(G8),1,1),'DJU Montsouris'!A:A,0),1):INDEX('DJU Montsouris'!B:B,MATCH(G8,'DJU Montsouris'!A:A,0),1),INDEX('DJU Montsouris'!B:B,MATCH(H8,'DJU Montsouris'!A:A,0),1):INDEX('DJU Montsouris'!B:B,MATCH(DATE(YEAR(G8),12,31),'DJU Montsouris'!A:A,0),1))) -> Dates de chauffe à renseigner
C41: 2013 | E41: =(INDEX($D$5:$D$13,(MIN(IF(ISBLANK($D$5:$D$13),ROW($D$14),ROW($D$5:$D$13))))-ROW($G$4),1))*G41/(INDEX($G$37:$G$45,(MIN(IF(ISBLANK($D$5:$D$13),ROW($D$14),ROW($D$5:$D$13))))-ROW($G$4),1)) ->  | G41: =IF(OR(G9="",H9=""), "Dates de chauffe à renseigner", SUM(INDEX('DJU Montsouris'!B:B,MATCH(DATE(YEAR(G9),1,1),'DJU Montsouris'!A:A,0),1):INDEX('DJU Montsouris'!B:B,MATCH(G9,'DJU Montsouris'!A:A,0),1),INDEX('DJU Montsouris'!B:B,MATCH(H9,'DJU Montsouris'!A:A,0),1):INDEX('DJU Montsouris'!B:B,MATCH(DATE(YEAR(G9),12,31),'DJU Montsouris'!A:A,0),1))) -> Dates de chauffe à renseigner
C42: 2014 | E42: =(INDEX($D$5:$D$13,(MIN(IF(ISBLANK($D$5:$D$13),ROW($D$14),ROW($D$5:$D$13))))-ROW($G$4),1))*G42/(INDEX($G$37:$G$45,(MIN(IF(ISBLANK($D$5:$D$13),ROW($D$14),ROW($D$5:$D$13))))-ROW($G$4),1)) ->  | G42: =IF(OR(G10="",H10=""), "Dates de chauffe à renseigner", SUM(INDEX('DJU Montsouris'!B:B,MATCH(DATE(YEAR(G10),1,1),'DJU Montsouris'!A:A,0),1):INDEX('DJU Montsouris'!B:B,MATCH(G10,'DJU Montsouris'!A:A,0),1),INDEX('DJU Montsouris'!B:B,MATCH(H10,'DJU Montsouris'!A:A,0),1):INDEX('DJU Montsouris'!B:B,MATCH(DATE(YEAR(G10),12,31),'DJU Montsouris'!A:A,0),1))) -> Dates de chauffe à renseigner
C43: 2015 | E43: =(INDEX($D$5:$D$13,(MIN(IF(ISBLANK($D$5:$D$13),ROW($D$14),ROW($D$5:$D$13))))-ROW($G$4),1))*G43/(INDEX($G$37:$G$45,(MIN(IF(ISBLANK($D$5:$D$13),ROW($D$14),ROW($D$5:$D$13))))-ROW($G$4),1)) ->  | G43: =IF(OR(G11="",H11=""), "Dates de chauffe à renseigner", SUM(INDEX('DJU Montsouris'!B:B,MATCH(DATE(YEAR(G11),1,1),'DJU Montsouris'!A:A,0),1):INDEX('DJU Montsouris'!B:B,MATCH(G11,'DJU Montsouris'!A:A,0),1),INDEX('DJU Montsouris'!B:B,MATCH(H11,'DJU Montsouris'!A:A,0),1):INDEX('DJU Montsouris'!B:B,MATCH(DATE(YEAR(G11),12,31),'DJU Montsouris'!A:A,0),1))) -> Dates de chauffe à renseigner
C44: 2016 | E44: =(INDEX($D$5:$D$13,(MIN(IF(ISBLANK($D$5:$D$13),ROW($D$14),ROW($D$5:$D$13))))-ROW($G$4),1))*G44/(INDEX($G$37:$G$45,(MIN(IF(ISBLANK($D$5:$D$13),ROW($D$14),ROW($D$5:$D$13))))-ROW($G$4),1)) ->  | G44: =IF(OR(G12="",H12=""), "Dates de chauffe à renseigner", SUM(INDEX('DJU Montsouris'!B:B,MATCH(DATE(YEAR(G12),1,1),'DJU Montsouris'!A:A,0),1):INDEX('DJU Montsouris'!B:B,MATCH(G12,'DJU Montsouris'!A:A,0),1),INDEX('DJU Montsouris'!B:B,MATCH(H12,'DJU Montsouris'!A:A,0),1):INDEX('DJU Montsouris'!B:B,MATCH(DATE(YEAR(G12),12,31),'DJU Montsouris'!A:A,0),1))) -> Dates de chauffe à renseigner
C45: 0 | E45: =(INDEX($D$5:$D$13,(MIN(IF(ISBLANK($D$5:$D$13),ROW($D$14),ROW($D$5:$D$13))))-ROW($G$4),1))*G45/(INDEX($G$37:$G$45,(MIN(IF(ISBLANK($D$5:$D$13),ROW($D$14),ROW($D$5:$D$13))))-ROW($G$4),1)) ->  | G45: =IF(OR(G13="",H13=""), "Dates de chauffe à renseigner", SUM(INDEX('DJU Montsouris'!B:B,MATCH(DATE(YEAR(G13),1,1),'DJU Montsouris'!A:A,0),1):INDEX('DJU Montsouris'!B:B,MATCH(G13,'DJU Montsouris'!A:A,0),1),INDEX('DJU Montsouris'!B:B,MATCH(H13,'DJU Montsouris'!A:A,0),1):INDEX('DJU Montsouris'!B:B,MATCH(DATE(YEAR(G13),12,31),'DJU Montsouris'!A:A,0),1))) -> Dates de chauffe à renseigner
E47: Moyenne : | F47: =AVERAGE(F37:F45) -> 
E99: Analyse des consommations de chauffage et d'ECS (Chauffage Urbain)
C100: =IF(Accueil!A3=1,"","Attention, vous avez spécifié sur la page Accueil être en chauffage collectif SANS eau chaude sanitaire") -> 
B101: Année | C101: Consommation totale (kWh) | D101: Consommation d'ECS (m3) | E101: Facture (€ TTC) | F101: Surface habitable chauffée (m2) | G101: Période de chauffe
G102: Fermeture | H102: Ouverture
B103: 2009 | I103: =IF(OR(AND(G103="",H103<>""),AND(G103<>"",H103="")),"Veuillez remplir les deux dates",IF(AND(G103="",H103=""),"",IF(AND((YEAR(G103))=B103,(YEAR(H103))=B103),"",CONCATENATE("Attention, les dates de la 'période de chauffe' ne correspondent pas à ",B103) ))) -> 
B104: 2010 | I104: =IF(OR(AND(G104="",H104<>""),AND(G104<>"",H104="")),"Veuillez remplir les deux dates",IF(AND(G104="",H104=""),"",IF(AND((YEAR(G104))=B104,(YEAR(H104))=B104),"",CONCATENATE("Attention, les dates de la 'période de chauffe' ne correspondent pas à ",B104) ))) -> 
B105: 2011
B106: 2012
B107: 2013
B108: 2014
B109: 2015
B110: 2016
C136: Nombre de DJU | D136: Consommation chauffage par DJU | E136: Simulation consommation chauffage sans dérive (kWh) | F136: Consommation d'énergie ECS (kWh) | G136: Consommation chauffage (kWh) | H136: Consommation chauffage + ECS (kWh/m2) | I136: Consommation chauffage (kWh/m2) | J136: Evolution prix du kWh
C137: =IF(OR(G103="",H103=""), "Dates de chauffe à renseigner", SUM(INDEX('DJU Montsouris'!B:B,MATCH(DATE(YEAR(G103),1,1),'DJU Montsouris'!A:A,0),1):INDEX('DJU Montsouris'!B:B,MATCH(G103,'DJU Montsouris'!A:A,0),1),INDEX('DJU Montsouris'!B:B,MATCH(H103,'DJU Montsouris'!A:A,0),1):INDEX('DJU Montsouris'!B:B,MATCH(DATE(YEAR(G103),12,31),'DJU Montsouris'!A:A,0),1))) -> Dates de chauffe à renseigner | D137: =IF(G137=0,#N/A,G137/C137) ->  | E137: =(INDEX($G$137:$G$145,(MIN(IF(ISERROR($G$137:$G$145),ROW($G$146),ROW($G$137:$G$145))))-ROW($G$136),1))*C137/(INDEX($C$137:$C$145,(MIN(IF(ISERROR($G$137:$G$145),ROW($G$146),ROW($G$137:$G$145))))-ROW($G$136),1)) ->  | F137: =96*D103 -> 0 | G137: =IF(C103="",#N/A,C103-F137) ->  | H137: =IF(C103="","",C103/F103) ->  | I137: =IF(ISNA(G137),"",G137/F103) ->  | J137: =IF(AND(E103<>"",C103<>""),E103/C103*100,#N/A) -> 
C138: =IF(OR(G104="",H104=""), "Dates de chauffe à renseigner", SUM(INDEX('DJU Montsouris'!B:B,MATCH(DATE(YEAR(G104),1,1),'DJU Montsouris'!A:A,0),1):INDEX('DJU Montsouris'!B:B,MATCH(G104,'DJU Montsouris'!A:A,0),1),INDEX('DJU Montsouris'!B:B,MATCH(H104,'DJU Montsouris'!A:A,0),1):INDEX('DJU Montsouris'!B:B,MATCH(DATE(YEAR(G104),12,31),'DJU Montsouris'!A:A,0),1))) -> Dates de chauffe à renseigner | D138: =IF(G138=0,#N/A,G138/C138) ->  | E138: =(INDEX($G$137:$G$145,(MIN(IF(ISERROR($G$137:$G$145),ROW($G$146),ROW($G$137:$G$145))))-ROW($G$136),1))*C138/(INDEX($C$137:$C$145,(MIN(IF(ISERROR($G$137:$G$145),ROW($G$146),ROW($G$137:$G$145))))-ROW($G$136),1)) ->  | F138: =96*D104 -> 0 | G138: =IF(C104="",#N/A, C104-F138) -> 
C139: =IF(OR(G105="",H105=""), "Dates de chauffe à renseigner", SUM(INDEX('DJU Montsouris'!B:B,MATCH(DATE(YEAR(G105),1,1),'DJU Montsouris'!A:A,0),1):INDEX('DJU Montsouris'!B:B,MATCH(G105,'DJU Montsouris'!A:A,0),1),INDEX('DJU Montsouris'!B:B,MATCH(H105,'DJU Montsouris'!A:A,0),1):INDEX('DJU Montsouris'!B:B,MATCH(DATE(YEAR(G105),12,31),'DJU Montsouris'!A:A,0),1))) -> Dates de chauffe à renseigner | D139: =IF(G139=0,#N/A,G139/C139) ->  | E139: =(INDEX($G$137:$G$145,(MIN(IF(ISERROR($G$137:$G$145),ROW($G$146),ROW($G$137:$G$145))))-ROW($G$136),1))*C139/(INDEX($C$137:$C$145,(MIN(IF(ISERROR($G$137:$G$145),ROW($G$146),ROW($G$137:$G$145))))-ROW($G$136),1)) ->  | F139: 0
C140: =IF(OR(G106="",H106=""), "Dates de chauffe à renseigner", SUM(INDEX('DJU Montsouris'!B:B,MATCH(DATE(YEAR(G106),1,1),'DJU Montsouris'!A:A,0),1):INDEX('DJU Montsouris'!B:B,MATCH(G106,'DJU Montsouris'!A:A,0),1),INDEX('DJU Montsouris'!B:B,MATCH(H106,'DJU Montsouris'!A:A,0),1):INDEX('DJU Montsouris'!B:B,MATCH(DATE(YEAR(G106),12,31),'DJU Montsouris'!A:A,0),1))) -> Dates de chauffe à renseigner | E140: =(INDEX($G$137:$G$145,(MIN(IF(ISERROR($G$137:$G$145),ROW($G$146),ROW($G$137:$G$145))))-ROW($G$136),1))*C140/(INDEX($C$137:$C$145,(MIN(IF(ISERROR($G$137:$G$145),ROW($G$146),ROW($G$137:$G$145))))-ROW($G$136),1)) ->  | F140: 0
C141: =IF(OR(G107="",H107=""), "Dates de chauffe à renseigner", SUM(INDEX('DJU Montsouris'!B:B,MATCH(DATE(YEAR(G107),1,1),'DJU Montsouris'!A:A,0),1):INDEX('DJU Montsouris'!B:B,MATCH(G107,'DJU Montsouris'!A:A,0),1),INDEX('DJU Montsouris'!B:B,MATCH(H107,'DJU Montsouris'!A:A,0),1):INDEX('DJU Montsouris'!B:B,MATCH(DATE(YEAR(G107),12,31),'DJU Montsouris'!A:A,0),1))) -> Dates de chauffe à renseigner | E141: =(INDEX($G$137:$G$145,(MIN(IF(ISERROR($G$137:$G$145),ROW($G$146),ROW($G$137:$G$145))))-ROW($G$136),1))*C141/(INDEX($C$137:$C$145,(MIN(IF(ISERROR($G$137:$G$145),ROW($G$146),ROW($G$137:$G$145))))-ROW($G$136),1)) ->  | F141: 0
C142: =IF(OR(G108="",H108=""), "Dates de chauffe à renseigner", SUM(INDEX('DJU Montsouris'!B:B,MATCH(DATE(YEAR(G108),1,1),'DJU Montsouris'!A:A,0),1):INDEX('DJU Montsouris'!B:B,MATCH(G108,'DJU Montsouris'!A:A,0),1),INDEX('DJU Montsouris'!B:B,MATCH(H108,'DJU Montsouris'!A:A,0),1):INDEX('DJU Montsouris'!B:B,MATCH(DATE(YEAR(G108),12,31),'DJU Montsouris'!A:A,0),1))) -> Dates de chauffe à renseigner | E142: =(INDEX($G$137:$G$145,(MIN(IF(ISERROR($G$137:$G$145),ROW($G$146),ROW($G$137:$G$145))))-ROW($G$136),1))*C142/(INDEX($C$137:$C$145,(MIN(IF(ISERROR($G$137:$G$145),ROW($G$146),ROW($G$137:$G$145))))-ROW($G$136),1)) ->  | F142: 0
C143: =IF(OR(G109="",H109=""), "Dates de chauffe à renseigner", SUM(INDEX('DJU Montsouris'!B:B,MATCH(DATE(YEAR(G109),1,1),'DJU Montsouris'!A:A,0),1):INDEX('DJU Montsouris'!B:B,MATCH(G109,'DJU Montsouris'!A:A,0),1),INDEX('DJU Montsouris'!B:B,MATCH(H109,'DJU Montsouris'!A:A,0),1):INDEX('DJU Montsouris'!B:B,MATCH(DATE(YEAR(G109),12,31),'DJU Montsouris'!A:A,0),1))) -> Dates de chauffe à renseigner | E143: =(INDEX($G$137:$G$145,(MIN(IF(ISERROR($G$137:$G$145),ROW($G$146),ROW($G$137:$G$145))))-ROW($G$136),1))*C143/(INDEX($C$137:$C$145,(MIN(IF(ISERROR($G$137:$G$145),ROW($G$146),ROW($G$137:$G$145))))-ROW($G$136),1)) ->  | F143: 0
C144: =IF(OR(G110="",H110=""), "Dates de chauffe à renseigner", SUM(INDEX('DJU Montsouris'!B:B,MATCH(DATE(YEAR(G110),1,1),'DJU Montsouris'!A:A,0),1):INDEX('DJU Montsouris'!B:B,MATCH(G110,'DJU Montsouris'!A:A,0),1),INDEX('DJU Montsouris'!B:B,MATCH(H110,'DJU Montsouris'!A:A,0),1):INDEX('DJU Montsouris'!B:B,MATCH(DATE(YEAR(G110),12,31),'DJU Montsouris'!A:A,0),1))) -> Dates de chauffe à renseigner | E144: =(INDEX($G$137:$G$145,(MIN(IF(ISERROR($G$137:$G$145),ROW($G$146),ROW($G$137:$G$145))))-ROW($G$136),1))*C144/(INDEX($C$137:$C$145,(MIN(IF(ISERROR($G$137:$G$145),ROW($G$146),ROW($G$137:$G$145))))-ROW($G$136),1)) ->  | F144: 0
C145: =IF(OR(G111="",H111=""), "Dates de chauffe à renseigner", SUM(INDEX('DJU Montsouris'!B:B,MATCH(DATE(YEAR(G111),1,1),'DJU Montsouris'!A:A,0),1):INDEX('DJU Montsouris'!B:B,MATCH(G111,'DJU Montsouris'!A:A,0),1),INDEX('DJU Montsouris'!B:B,MATCH(H111,'DJU Montsouris'!A:A,0),1):INDEX('DJU Montsouris'!B:B,MATCH(DATE(YEAR(G111),12,31),'DJU Montsouris'!A:A,0),1))) -> Dates de chauffe à renseigner | E145: =(INDEX($G$137:$G$145,(MIN(IF(ISERROR($G$137:$G$145),ROW($G$146),ROW($G$137:$G$145))))-ROW($G$136),1))*C145/(INDEX($C$137:$C$145,(MIN(IF(ISERROR($G$137:$G$145),ROW($G$146),ROW($G$137:$G$145))))-ROW($G$136),1)) ->  | F145: 0
G147: Moyenne : | H147: =AVERAGE(H137:H145) ->  | I147: =AVERAGE(I137:I145) -> 

Sheet CPCU Saison de chauffe
E1: Analyse des consommations de chauffage (Chauffage Urbain) | J1: [il est considéré qu'une tonne vapeur (TV) = 697 kWh]
D2: =IF(Accueil!A3=2,"","Attention, vous avez spécifié sur la page Accueil être en chauffage collectif AVEC eau chaude sanitaire") -> Attention, vous avez spécifié sur la page Accueil être en chauffage collectif AVEC eau chaude sanitaire
C3: Saison de chauffe | E3: Consommation Chauffage (kWh) | F3: Facture Chauffage (€ TTC) | G3: Surface habitable chauffée (m2) | H3: Période de chauffe (jj/mm/aaaa)
H4: Ouverture | I4: Fermeture
C5: 2008 | D5: 2009 | J5: =IF(OR(AND(H5="",I5<>""),AND(H5<>"",I5="")), "Veuillez remplir les deux dates", IF(AND(H5="",I5=""),"",IF(AND((YEAR(H5))=C5,(YEAR(I5))=D5),"","Attention, les dates 'Saison de chauffe' et 'période de chauffe' sont différentes"))) -> 
C6: 2009 | D6: 2010 | J6: =IF(OR(AND(H6="",I6<>""),AND(H6<>"",I6="")), "Veuillez remplir les deux dates", IF(AND(H6="",I6=""),"",IF(AND((YEAR(H6))=C6,(YEAR(I6))=D6),"","Attention, les dates 'Saison de chauffe' et 'période de chauffe' sont différentes"))) -> 
C7: 2010 | D7: 2011
C8: 2011 | D8: 2012
C9: 2012 | D9: 2013
C10: 2013 | D10: 2014
C11: 2014 | D11: 2015
C12: 2015 | D12: 2016
D36: Saison de chauffe | E36: Consommation chauffage par DJU | F36: Simulation consommation chauffage sans dérive (kWh) | G36: Consommation relative (kWh/m2) | H36: Nombre de DJU | I36: Evolution prix du kWh
D37: =C5&"/"&D5 -> 2008/2009 | E37: =IF(E5="",#N/A,E5/H37) ->  | F37: =(INDEX($E$5:$E$13,(MIN(IF(ISBLANK($E$5:$E$13),ROW($E$14),ROW($E$5:$E$13))))-ROW($H$4),1))*H37/(INDEX($H$37:$H$45,(MIN(IF(ISBLANK($E$5:$E$13),ROW($E$14),ROW($E$5:$E$13))))-ROW($H$4),1)) ->  | G37: =IF(E5="","",E5/G5) ->  | H37: =IF(OR(H5="",I5=""), "Dates de chauffe à renseigner", SUM(INDEX('DJU Montsouris'!B:B,MATCH(H5,'DJU Montsouris'!A:A,0),1):INDEX('DJU Montsouris'!B:B,MATCH(I5,'DJU Montsouris'!A:A,0),1))) -> Dates de chauffe à renseigner | I37: =IF(AND(E5<>"",F5<>""),F5/E5*100,#N/A) -> 
D38: =C6&"/"&D6 -> 2009/2010 | E38: =IF(E6="",#N/A,E6/H38) ->  | F38: =(INDEX($E$5:$E$13,(MIN(IF(ISBLANK($E$5:$E$13),ROW($E$14),ROW($E$5:$E$13))))-ROW($H$4),1))*H38/(INDEX($H$37:$H$45,(MIN(IF(ISBLANK($E$5:$E$13),ROW($E$14),ROW($E$5:$E$13))))-ROW($H$4),1)) ->  | G38: =IF(E6="","",E6/G6) ->  | H38: =IF(OR(H6="",I6=""), "Dates de chauffe à renseigner", SUM(INDEX('DJU Montsouris'!B:B,MATCH(H6,'DJU Montsouris'!A:A,0),1):INDEX('DJU Montsouris'!B:B,MATCH(I6,'DJU Montsouris'!A:A,0),1))) -> Dates de chauffe à renseigner
D39: 2010/2011 | E39: =IF(E7="",#N/A,E7/H39) ->  | F39: =(INDEX($E$5:$E$13,(MIN(IF(ISBLANK($E$5:$E$13),ROW($E$14),ROW($E$5:$E$13))))-ROW($H$4),1))*H39/(INDEX($H$37:$H$45,(MIN(IF(ISBLANK($E$5:$E$13),ROW($E$14),ROW($E$5:$E$13))))-ROW($H$4),1)) ->  | G39: =IF(E7="","",E7/G7) ->  | H39: =IF(OR(H7="",I7=""), "Dates de chauffe à renseigner", SUM(INDEX('DJU Montsouris'!B:B,MATCH(H7,'DJU Montsouris'!A:A,0),1):INDEX('DJU Montsouris'!B:B,MATCH(I7,'DJU Montsouris'!A:A,0),1))) -> Dates de chauffe à renseigner
D40: 2011/2012 | F40: =(INDEX($E$5:$E$13,(MIN(IF(ISBLANK($E$5:$E$13),ROW($E$14),ROW($E$5:$E$13))))-ROW($H$4),1))*H40/(INDEX($H$37:$H$45,(MIN(IF(ISBLANK($E$5:$E$13),ROW($E$14),ROW($E$5:$E$13))))-ROW($H$4),1)) ->  | H40: =IF(OR(H8="",I8=""), "Dates de chauffe à renseigner", SUM(INDEX('DJU Montsouris'!B:B,MATCH(H8,'DJU Montsouris'!A:A,0),1):INDEX('DJU Montsouris'!B:B,MATCH(I8,'DJU Montsouris'!A:A,0),1))) -> Dates de chauffe à renseigner
D41: 2012/2013 | F41: =(INDEX($E$5:$E$13,(MIN(IF(ISBLANK($E$5:$E$13),ROW($E$14),ROW($E$5:$E$13))))-ROW($H$4),1))*H41/(INDEX($H$37:$H$45,(MIN(IF(ISBLANK($E$5:$E$13),ROW($E$14),ROW($E$5:$E$13))))-ROW($H$4),1)) ->  | H41: =IF(OR(H9="",I9=""), "Dates de chauffe à renseigner", SUM(INDEX('DJU Montsouris'!B:B,MATCH(H9,'DJU Montsouris'!A:A,0),1):INDEX('DJU Montsouris'!B:B,MATCH(I9,'DJU Montsouris'!A:A,0),1))) -> Dates de chauffe à renseigner
D42: 2013/2014 | F42: =(INDEX($E$5:$E$13,(MIN(IF(ISBLANK($E$5:$E$13),ROW($E$14),ROW($E$5:$E$13))))-ROW($H$4),1))*H42/(INDEX($H$37:$H$45,(MIN(IF(ISBLANK($E$5:$E$13),ROW($E$14),ROW($E$5:$E$13))))-ROW($H$4),1)) ->  | H42: =IF(OR(H10="",I10=""), "Dates de chauffe à renseigner", SUM(INDEX('DJU Montsouris'!B:B,MATCH(H10,'DJU Montsouris'!A:A,0),1):INDEX('DJU Montsouris'!B:B,MATCH(I10,'DJU Montsouris'!A:A,0),1))) -> Dates de chauffe à renseigner
D43: 2014/2015 | F43: =(INDEX($E$5:$E$13,(MIN(IF(ISBLANK($E$5:$E$13),ROW($E$14),ROW($E$5:$E$13))))-ROW($H$4),1))*H43/(INDEX($H$37:$H$45,(MIN(IF(ISBLANK($E$5:$E$13),ROW($E$14),ROW($E$5:$E$13))))-ROW($H$4),1)) ->  | H43: =IF(OR(H11="",I11=""), "Dates de chauffe à renseigner", SUM(INDEX('DJU Montsouris'!B:B,MATCH(H11,'DJU Montsouris'!A:A,0),1):INDEX('DJU Montsouris'!B:B,MATCH(I11,'DJU Montsouris'!A:A,0),1))) -> Dates de chauffe à renseigner
D44: 2015/2016 | F44: =(INDEX($E$5:$E$13,(MIN(IF(ISBLANK($E$5:$E$13),ROW($E$14),ROW($E$5:$E$13))))-ROW($H$4),1))*H44/(INDEX($H$37:$H$45,(MIN(IF(ISBLANK($E$5:$E$13),ROW($E$14),ROW($E$5:$E$13))))-ROW($H$4),1)) ->  | H44: =IF(OR(H12="",I12=""), "Dates de chauffe à renseigner", SUM(INDEX('DJU Montsouris'!B:B,MATCH(H12,'DJU Montsouris'!A:A,0),1):INDEX('DJU Montsouris'!B:B,MATCH(I12,'DJU Montsouris'!A:A,0),1))) -> Dates de chauffe à renseigner
D45: / | F45: =(INDEX($E$5:$E$13,(MIN(IF(ISBLANK($E$5:$E$13),ROW($E$14),ROW($E$5:$E$13))))-ROW($H$4),1))*H45/(INDEX($H$37:$H$45,(MIN(IF(ISBLANK($E$5:$E$13),ROW($E$14),ROW($E$5:$E$13))))-ROW($H$4),1)) ->  | H45: =IF(OR(H13="",I13=""), "Dates de chauffe à renseigner", SUM(INDEX('DJU Montsouris'!B:B,MATCH(H13,'DJU Montsouris'!A:A,0),1):INDEX('DJU Montsouris'!B:B,MATCH(I13,'DJU Montsouris'!A:A,0),1))) -> Dates de chauffe à renseigner
F47: Moyenne : | G47: =AVERAGE(G37:G45) -> 
E99: Analyse des consommations de chauffage et d'ECS (Chauffage Urbain) | J99: [il est considéré qu'une tonne vapeur (TV) = 697 kWh]
D100: =IF(Accueil!A3=1,"","Attention, vous avez spécifié sur la page Accueil être en chauffage collectif SANS eau chaude sanitaire") -> 
B101: Saison de chauffe | D101: Consommation totale (kWh) | E101: Consommation d'ECS (m3) | F101: Facture (€ TTC) | G101: Surface habitable chauffée (m2) | H101: Période de chauffe
H102: Ouverture | I102: Fermeture
B103: 2008 | C103: 2009 | J103: =IF(OR(AND(H103="",I103<>""),AND(H103<>"",I103="")), "Veuillez remplir les deux dates", IF(AND(H103="",I103=""),"",IF(AND((YEAR(H103))=B103,(YEAR(I103))=C103),"","Attention, les dates 'Saison de chauffe' et 'période de chauffe' sont différentes"))) -> 
B104: 2009 | C104: 2010 | J104: =IF(OR(AND(H104="",I104<>""),AND(H104<>"",I104="")), "Veuillez remplir les deux dates", IF(AND(H104="",I104=""),"",IF(AND((YEAR(H104))=B104,(YEAR(I104))=C104),"","Attention, les dates 'Saison de chauffe' et 'période de chauffe' sont différentes"))) -> 
B105: 2010 | C105: 2011
B106: 2011 | C106: 2012
B107: 2012 | C107: 2013
B108: 2013 | C108: 2014
B109: 2014 | C109: 2015
B110: 2015 | C110: 2016
C140: Saison de chauffe | D140: Nombre de DJU | E140: Consommation chauffage par DJU | F140: Simulation consommation chauffage sans dérive (kWh) | G140: Consommation d'énergie ECS (kWh) | H140: Consommation chauffage (kWh) | I140: Consommation chauffage + ECS (kWh/m2) | J140: Consommation chauffage (kWh/m2) | K140: Evolution prix du kWh
C141: =B103&"/"&C103 -> 2008/2009 | D141: =IF(OR(H103="",I103=""), "Dates de chauffe à renseigner", SUM(INDEX('DJU Montsouris'!B:B,MATCH(H103,'DJU Montsouris'!A:A,0),1):INDEX('DJU Montsouris'!B:B,MATCH(I103,'DJU Montsouris'!A:A,0),1))) -> Dates de chauffe à renseigner | E141: =IF(H141=0,#N/A,H141/D141) ->  | F141: =(INDEX($H$141:$H$149,(MIN(IF(ISERROR($H$141:$H$149),ROW($H$150),ROW($H$141:$H$149))))-ROW($H$140),1))*D141/(INDEX($D$141:$D$149,(MIN(IF(ISERROR($H$141:$H$149),ROW($H$150),ROW($H$141:$H$149))))-ROW($H$140),1)) ->  | G141: =96*E103 -> 0 | H141: =IF(D103="",#N/A,D103-G141) ->  | I141: =IF(D103="","",D103/G103) ->  | J141: =IF(ISNA(H141),"",H141/G103) ->  | K141: =IF(AND(F103<>"",D103<>""),F103/D103*100,#N/A) -> 
C142: =B104&"/"&C104 -> 2009/2010 | D142: =IF(OR(H104="",I104=""), "Dates de chauffe à renseigner", SUM(INDEX('DJU Montsouris'!B:B,MATCH(H104,'DJU Montsouris'!A:A,0),1):INDEX('DJU Montsouris'!B:B,MATCH(I104,'DJU Montsouris'!A:A,0),1))) -> Dates de chauffe à renseigner | E142: =IF(H142=0,#N/A,H142/D142) ->  | F142: =(INDEX($H$141:$H$149,(MIN(IF(ISERROR($H$141:$H$149),ROW($H$150),ROW($H$141:$H$149))))-ROW($H$140),1))*D142/(INDEX($D$141:$D$149,(MIN(IF(ISERROR($H$141:$H$149),ROW($H$150),ROW($H$141:$H$149))))-ROW($H$140),1)) ->  | G142: =96*E104 -> 0
C143: 2010/2011 | D143: =IF(OR(H105="",I105=""), "Dates de chauffe à renseigner", SUM(INDEX('DJU Montsouris'!B:B,MATCH(H105,'DJU Montsouris'!A:A,0),1):INDEX('DJU Montsouris'!B:B,MATCH(I105,'DJU Montsouris'!A:A,0),1))) -> Dates de chauffe à renseigner | E143: =IF(H143=0,#N/A,H143/D143) ->  | F143: =(INDEX($H$141:$H$149,(MIN(IF(ISERROR($H$141:$H$149),ROW($H$150),ROW($H$141:$H$149))))-ROW($H$140),1))*D143/(INDEX($D$141:$D$149,(MIN(IF(ISERROR($H$141:$H$149),ROW($H$150),ROW($H$141:$H$149))))-ROW($H$140),1)) ->  | G143: 0
C144: 2011/2012 | D144: =IF(OR(H106="",I106=""), "Dates de chauffe à renseigner", SUM(INDEX('DJU Montsouris'!B:B,MATCH(H106,'DJU Montsouris'!A:A,0),1):INDEX('DJU Montsouris'!B:B,MATCH(I106,'DJU Montsouris'!A:A,0),1))) -> Dates de chauffe à renseigner | F144: =(INDEX($H$141:$H$149,(MIN(IF(ISERROR($H$141:$H$149),ROW($H$150),ROW($H$141:$H$149))))-ROW($H$140),1))*D144/(INDEX($D$141:$D$149,(MIN(IF(ISERROR($H$141:$H$149),ROW($H$150),ROW($H$141:$H$149))))-ROW($H$140),1)) ->  | G144: 0
C145: 2012/2013 | D145: =IF(OR(H107="",I107=""), "Dates de chauffe à renseigner", SUM(INDEX('DJU Montsouris'!B:B,MATCH(H107,'DJU Montsouris'!A:A,0),1):INDEX('DJU Montsouris'!B:B,MATCH(I107,'DJU Montsouris'!A:A,0),1))) -> Dates de chauffe à renseigner | F145: =(INDEX($H$141:$H$149,(MIN(IF(ISERROR($H$141:$H$149),ROW($H$150),ROW($H$141:$H$149))))-ROW($H$140),1))*D145/(INDEX($D$141:$D$149,(MIN(IF(ISERROR($H$141:$H$149),ROW($H$150),ROW($H$141:$H$149))))-ROW($H$140),1)) ->  | G145: 0
C146: 2013/2014 | D146: =IF(OR(H108="",I108=""), "Dates de chauffe à renseigner", SUM(INDEX('DJU Montsouris'!B:B,MATCH(H108,'DJU Montsouris'!A:A,0),1):INDEX('DJU Montsouris'!B:B,MATCH(I108,'DJU Montsouris'!A:A,0),1))) -> Dates de chauffe à renseigner | F146: =(INDEX($H$141:$H$149,(MIN(IF(ISERROR($H$141:$H$149),ROW($H$150),ROW($H$141:$H$149))))-ROW($H$140),1))*D146/(INDEX($D$141:$D$149,(MIN(IF(ISERROR($H$141:$H$149),ROW($H$150),ROW($H$141:$H$149))))-ROW($H$140),1)) ->  | G146: 0
C147: 2014/2015 | D147: =IF(OR(H109="",I109=""), "Dates de chauffe à renseigner", SUM(INDEX('DJU Montsouris'!B:B,MATCH(H109,'DJU Montsouris'!A:A,0),1):INDEX('DJU Montsouris'!B:B,MATCH(I109,'DJU Montsouris'!A:A,0),1))) -> Dates de chauffe à renseigner | F147: =(INDEX($H$141:$H$149,(MIN(IF(ISERROR($H$141:$H$149),ROW($H$150),ROW($H$141:$H$149))))-ROW($H$140),1))*D147/(INDEX($D$141:$D$149,(MIN(IF(ISERROR($H$141:$H$149),ROW($H$150),ROW($H$141:$H$149))))-ROW($H$140),1)) ->  | G147: 0
C148: 2015/2016 | D148: =IF(OR(H110="",I110=""), "Dates de chauffe à renseigner", SUM(INDEX('DJU Montsouris'!B:B,MATCH(H110,'DJU Montsouris'!A:A,0),1):INDEX('DJU Montsouris'!B:B,MATCH(I110,'DJU Montsouris'!A:A,0),1))) -> Dates de chauffe à renseigner | F148: =(INDEX($H$141:$H$149,(MIN(IF(ISERROR($H$141:$H$149),ROW($H$150),ROW($H$141:$H$149))))-ROW($H$140),1))*D148/(INDEX($D$141:$D$149,(MIN(IF(ISERROR($H$141:$H$149),ROW($H$150),ROW($H$141:$H$149))))-ROW($H$140),1)) ->  | G148: 0
C149: / | D149: =IF(OR(H111="",I111=""), "Dates de chauffe à renseigner", SUM(INDEX('DJU Montsouris'!B:B,MATCH(H111,'DJU Montsouris'!A:A,0),1):INDEX('DJU Montsouris'!B:B,MATCH(I111,'DJU Montsouris'!A:A,0),1))) -> Dates de chauffe à renseigner | F149: =(INDEX($H$141:$H$149,(MIN(IF(ISERROR($H$141:$H$149),ROW($H$150),ROW($H$141:$H$149))))-ROW($H$140),1))*D149/(INDEX($D$141:$D$149,(MIN(IF(ISERROR($H$141:$H$149),ROW($H$150),ROW($H$141:$H$149))))-ROW($H$140),1)) ->  | G149: 0
H151: Moyenne : | I151: =AVERAGE(I141:I149) ->  | J151: =AVERAGE(J141:J149) -> 

Sheet Aide
B5: Qu'est ce que le Bilan Énergétique Simplifié ? | C5: Le Bilan Énergétique Simplifié (BES) est un outil d'évaluation de la performance énergétique d'une copropriété
C6: Cet outil est destiné aux copropriétés dotées d'une installation de chauffage collectif et/ou d'eau chaude sanitaire collective
B8: Comment l'utiliser ? | C8: Pour utiliser cet outil, sélectionnez votre type d'énergie (gaz, fioul, réseau de chaleur), ainsi que votre période de chauffe considérée.
C9: La période de chauffe considérée sera choisie en fonction de vos factures ou de vos relevés de consommations. Par exemple :
C10: - si votre relevé de consommation se fait à chaque fin ou début de période de chauffe (généralement entre octobre et avril), choisissez "Saison de chauffe"
C11: - si votre facture et vos relevés de consommations sont annuels, choissisez "Année"
B13: Les liens ne fonctionnent pas, que faire ? | C13: Si certains liens de la page d'accueil ne fonctionnent pas, il est possible que cela vienne des "macros excel". Vous avez alors un message indiquant "Les macros ont été désactivées". Cliquez alors sur "activez le contenu" et les liens fonctionneront.
B15: Quelles sont les limites ? | C15: Cette version contient les données climatiques (Degrés Jours Unifiés ou DJU) du 1er JANVIER 2002 au 30 JUIN 2016
C16: Sii les dates saisies sont situées en déhors de cette plage, les calculs ne pourront se faire.
B18: Qu'est ce que la simulation de la consomation sans dérive? | C18: La simulation de la consommation sans dérive correspond à la consommation théorique de la copropriété avec une efficacité constante dans le système de chauffage.
C19: Si la simulation sans dérive est inférieure à la consommation réelle, alors votre système peut être de moins en moins efficace.
C20: Si la simulation sans dérive est supérieure à la consommation réelle, cela peut s'expliquer par des améliorations apportées (isolation du bâtiment, désembouage du réseau, baisse de la température de consigne…)
B22: Remarques : | C22: 1. La consommation d'eau chaude sanitaire (ECS) est déterminée par le total des consommations des compteurs divisionnaires (individuels) et/ou par le relevé du compteur d'eau froide dite "réchauffée" (en chaufferie). Il faut si possible comparer ces 2 mesures pour voir s'il existe un différentiel. Si vous n'avez pas de compteurs divisionnaires d'ECS, ni de compteur général d'ECS en chaufferie, vous pouvez prendre comme valeur le 1/3 de la consommation d'eau froide de votre copropriété (on estime qu'il est consommé en moyenne 1/3 d'ECS et 2/3 d'eau froide).
C23: 2. Nous considérons que l'énergie nécessaire pour fournir aux logements 1m3 d'ECS à 60°C est de 120 kWh PCI (pouvoir calorifique inférieur) dans le cas d'un chauffage au gaz ou au fioul, et de 96 kWh PCI dans le cas d'un chauffage issu d'un réseau de chaleur. Cette valeur, différente d'une installation à l'autre, est donc une approximation et il vous est possible de la modifier si vous en avez une plus proche de votre situation.
C24: 3. La surface habitable chauffée est la somme des surfaces de tous les lots privatifs (on ne considère pas les parties communes, même chauffées).
C25: 4. La mesure de la quantité de fioul consommée doit normalement apparaître sur le carnet d'entretien. Il est considéré ici que 1 litre de fioul correspond à 9,97 kWh PCI
B27: Plus d'informations sur le Bilan Énergétique simplifié : LISEZ LE GUIDE ! | C27: http://www.unarc.asso.fr/sites/default/files/files/eco-bilan-simplifie.pdf
H57: Analyse des consommations de chauffage (Gaz)
F59: Année | G59: Consommation Chauffage (kWh) | H59: Facture chauffage (€ TTC) | I59: Surface habitable chauffée (m2) | J59: Période de chauffe (jj/mm/aaaa)
J60: Fermeture | K60: Ouverture
F61: 2004 | G61: 3383000 | H61: 154787 | I61: 25000 | J61: 2004-05-24 | K61: 2004-10-10
F62: 2005 | G62: 3335000 | H62: 165710 | I62: 25000 | J62: 2005-05-20 | K62: 2005-10-05
F63: 2006 | G63: 3378000 | H63: 178932 | I63: 25000 | J63: 2006-05-08 | K63: 2006-10-22
F64: 2007 | G64: 3085000 | H64: 180232 | I64: 25000 | J64: 2007-04-25 | K64: 2007-10-16
F65: 2008
F66: 2009
F67: 2010
F68: 2011
F69: 2012
F92: Année | G92: Consommation chauffage par DJU | H92: Simulation consommation chauffage sans dérive (kWh) | I92: Consommation relative (kWh/m2) | J92: Nombre de DJU | K92: Evolution prix du kWh
F93: =F61 -> 2004 | G93: =IF(G61<>"",G61/J93,#N/A) -> 1569.699191 | H93: =(INDEX($G$61:$G$69,(MIN(IF(ISBLANK($G$61:$G$69),ROW($G$70),ROW($G$61:$G$69))))-ROW($J$60),1))*J93/(INDEX($J$93:$J$101,(MIN(IF(ISBLANK($G$61:$G$69),ROW($G$70),ROW($G$61:$G$69))))-ROW($J$60),1)) -> 3383000 | I93: =IF(G61="","",G61/I61) -> 135.32 | J93: =IF(OR(J61="",K61=""), "Dates de chauffe à renseigner", SUM(INDEX('DJU Montsouris'!B:B,MATCH(DATE(YEAR(J61),1,1),'DJU Montsouris'!A:A,0),1):INDEX('DJU Montsouris'!B:B,MATCH(J61,'DJU Montsouris'!A:A,0),1),INDEX('DJU Montsouris'!B:B,MATCH(K61,'DJU Montsouris'!A:A,0),1):INDEX('DJU Montsouris'!B:B,MATCH(DATE(YEAR(J61),12,31),'DJU Montsouris'!A:A,0),1))) -> 2155.19 | K93: =IF(AND(G61<>"",H61<>""),H61/G61*100,#N/A) -> 4.575436004
F94: =F62 -> 2005 | G94: =IF(G62<>"",G62/J94,#N/A) -> 1560.109839 | H94: =(INDEX($G$61:$G$69,(MIN(IF(ISBLANK($G$61:$G$69),ROW($G$70),ROW($G$61:$G$69))))-ROW($J$60),1))*J94/(INDEX($J$93:$J$101,(MIN(IF(ISBLANK($G$61:$G$69),ROW($G$70),ROW($G$61:$G$69))))-ROW($J$60),1)) -> 3355498.87 | I94: =IF(G62="","",G62/I62) -> 133.4 | J94: =IF(OR(J62="",K62=""), "Dates de chauffe à renseigner", SUM(INDEX('DJU Montsouris'!B:B,MATCH(DATE(YEAR(J62),1,1),'DJU Montsouris'!A:A,0),1):INDEX('DJU Montsouris'!B:B,MATCH(J62,'DJU Montsouris'!A:A,0),1),INDEX('DJU Montsouris'!B:B,MATCH(K62,'DJU Montsouris'!A:A,0),1):INDEX('DJU Montsouris'!B:B,MATCH(DATE(YEAR(J62),12,31),'DJU Montsouris'!A:A,0),1))) -> 2137.67 | K94: 4.968815592
F95: 2006 | G95: 1658.516467 | H95: =(INDEX($G$61:$G$69,(MIN(IF(ISBLANK($G$61:$G$69),ROW($G$70),ROW($G$61:$G$69))))-ROW($J$60),1))*J95/(INDEX($J$93:$J$101,(MIN(IF(ISBLANK($G$61:$G$69),ROW($G$70),ROW($G$61:$G$69))))-ROW($J$60),1)) -> 3197100.525 | I95: =IF(G63="","",G63/I63) -> 135.12 | J95: =IF(OR(J63="",K63=""), "Dates de chauffe à renseigner", SUM(INDEX('DJU Montsouris'!B:B,MATCH(DATE(YEAR(J63),1,1),'DJU Montsouris'!A:A,0),1):INDEX('DJU Montsouris'!B:B,MATCH(J63,'DJU Montsouris'!A:A,0),1),INDEX('DJU Montsouris'!B:B,MATCH(K63,'DJU Montsouris'!A:A,0),1):INDEX('DJU Montsouris'!B:B,MATCH(DATE(YEAR(J63),12,31),'DJU Montsouris'!A:A,0),1))) -> 2036.76 | K95: 5.296980462
F96: 2007 | G96: 1743.164366 | H96: =(INDEX($G$61:$G$69,(MIN(IF(ISBLANK($G$61:$G$69),ROW($G$70),ROW($G$61:$G$69))))-ROW($J$60),1))*J96/(INDEX($J$93:$J$101,(MIN(IF(ISBLANK($G$61:$G$69),ROW($G$70),ROW($G$61:$G$69))))-ROW($J$60),1)) -> 2778006.538 | I96: 123.4 | J96: =IF(OR(J64="",K64=""), "Dates de chauffe à renseigner", SUM(INDEX('DJU Montsouris'!B:B,MATCH(DATE(YEAR(J64),1,1),'DJU Montsouris'!A:A,0),1):INDEX('DJU Montsouris'!B:B,MATCH(J64,'DJU Montsouris'!A:A,0),1),INDEX('DJU Montsouris'!B:B,MATCH(K64,'DJU Montsouris'!A:A,0),1):INDEX('DJU Montsouris'!B:B,MATCH(DATE(YEAR(J64),12,31),'DJU Montsouris'!A:A,0),1))) -> 1769.77 | K96: 5.842204214
F97: 2008 | H97: =(INDEX($G$61:$G$69,(MIN(IF(ISBLANK($G$61:$G$69),ROW($G$70),ROW($G$61:$G$69))))-ROW($J$60),1))*J97/(INDEX($J$93:$J$101,(MIN(IF(ISBLANK($G$61:$G$69),ROW($G$70),ROW($G$61:$G$69))))-ROW($J$60),1)) ->  | J97: =IF(OR(J65="",K65=""), "Dates de chauffe à renseigner", SUM(INDEX('DJU Montsouris'!B:B,MATCH(DATE(YEAR(J65),1,1),'DJU Montsouris'!A:A,0),1):INDEX('DJU Montsouris'!B:B,MATCH(J65,'DJU Montsouris'!A:A,0),1),INDEX('DJU Montsouris'!B:B,MATCH(K65,'DJU Montsouris'!A:A,0),1):INDEX('DJU Montsouris'!B:B,MATCH(DATE(YEAR(J65),12,31),'DJU Montsouris'!A:A,0),1))) -> Dates de chauffe à renseigner
F98: 2009 | H98: =(INDEX($G$61:$G$69,(MIN(IF(ISBLANK($G$61:$G$69),ROW($G$70),ROW($G$61:$G$69))))-ROW($J$60),1))*J98/(INDEX($J$93:$J$101,(MIN(IF(ISBLANK($G$61:$G$69),ROW($G$70),ROW($G$61:$G$69))))-ROW($J$60),1)) ->  | J98: =IF(OR(J66="",K66=""), "Dates de chauffe à renseigner", SUM(INDEX('DJU Montsouris'!B:B,MATCH(DATE(YEAR(J66),1,1),'DJU Montsouris'!A:A,0),1):INDEX('DJU Montsouris'!B:B,MATCH(J66,'DJU Montsouris'!A:A,0),1),INDEX('DJU Montsouris'!B:B,MATCH(K66,'DJU Montsouris'!A:A,0),1):INDEX('DJU Montsouris'!B:B,MATCH(DATE(YEAR(J66),12,31),'DJU Montsouris'!A:A,0),1))) -> Dates de chauffe à renseigner
F99: 2010 | H99: =(INDEX($G$61:$G$69,(MIN(IF(ISBLANK($G$61:$G$69),ROW($G$70),ROW($G$61:$G$69))))-ROW($J$60),1))*J99/(INDEX($J$93:$J$101,(MIN(IF(ISBLANK($G$61:$G$69),ROW($G$70),ROW($G$61:$G$69))))-ROW($J$60),1)) ->  | J99: =IF(OR(J67="",K67=""), "Dates de chauffe à renseigner", SUM(INDEX('DJU Montsouris'!B:B,MATCH(DATE(YEAR(J67),1,1),'DJU Montsouris'!A:A,0),1):INDEX('DJU Montsouris'!B:B,MATCH(J67,'DJU Montsouris'!A:A,0),1),INDEX('DJU Montsouris'!B:B,MATCH(K67,'DJU Montsouris'!A:A,0),1):INDEX('DJU Montsouris'!B:B,MATCH(DATE(YEAR(J67),12,31),'DJU Montsouris'!A:A,0),1))) -> Dates de chauffe à renseigner
F100: 2011 | H100: =(INDEX($G$61:$G$69,(MIN(IF(ISBLANK($G$61:$G$69),ROW($G$70),ROW($G$61:$G$69))))-ROW($J$60),1))*J100/(INDEX($J$93:$J$101,(MIN(IF(ISBLANK($G$61:$G$69),ROW($G$70),ROW($G$61:$G$69))))-ROW($J$60),1)) ->  | J100: =IF(OR(J68="",K68=""), "Dates de chauffe à renseigner", SUM(INDEX('DJU Montsouris'!B:B,MATCH(DATE(YEAR(J68),1,1),'DJU Montsouris'!A:A,0),1):INDEX('DJU Montsouris'!B:B,MATCH(J68,'DJU Montsouris'!A:A,0),1),INDEX('DJU Montsouris'!B:B,MATCH(K68,'DJU Montsouris'!A:A,0),1):INDEX('DJU Montsouris'!B:B,MATCH(DATE(YEAR(J68),12,31),'DJU Montsouris'!A:A,0),1))) -> Dates de chauffe à renseigner
F101: 2012 | H101: =(INDEX($G$61:$G$69,(MIN(IF(ISBLANK($G$61:$G$69),ROW($G$70),ROW($G$61:$G$69))))-ROW($J$60),1))*J101/(INDEX($J$93:$J$101,(MIN(IF(ISBLANK($G$61:$G$69),ROW($G$70),ROW($G$61:$G$69))))-ROW($J$60),1)) ->  | J101: =IF(OR(J69="",K69=""), "Dates de chauffe à renseigner", SUM(INDEX('DJU Montsouris'!B:B,MATCH(DATE(YEAR(J69),1,1),'DJU Montsouris'!A:A,0),1):INDEX('DJU Montsouris'!B:B,MATCH(J69,'DJU Montsouris'!A:A,0),1),INDEX('DJU Montsouris'!B:B,MATCH(K69,'DJU Montsouris'!A:A,0),1):INDEX('DJU Montsouris'!B:B,MATCH(DATE(YEAR(J69),12,31),'DJU Montsouris'!A:A,0),1))) -> Dates de chauffe à renseigner
H103: Moyenne : | I103: =AVERAGE(I93:I101) -> 131.81
H158: Analyse des consommations de chauffage et d'ECS (Gaz)
E160: Année | F160: Consommation totale (kWh) | G160: Consommation d'ECS (m3) | H160: Facture (€ TTC) | I160: Surface habitable chauffée (m2) | J160: Période de chauffe
J161: Fermeture | K161: Ouverture
E162: 2003
E163: 2004 | F163: 1198295 | G163: 1550 | H163: 67880 | I163: 6400 | J163: 2004-05-26 | K163: 2004-10-12
E164: 2005 | F164: 1156490 | G164: 1300 | H164: 68550 | I164: 6400 | J164: 2005-05-15 | K164: 2005-10-10
E165: 2006 | F165: 1139926 | G165: 1295 | H165: 72469 | I165: 6400 | J165: 2006-05-05 | K165: 2006-10-25
E166: 2007 | F166: 1013100 | G166: 1228 | H166: 70221 | I166: 6400 | J166: 2007-04-15 | K166: 2007-10-15
E167: 2008 | F167: 1170898 | G167: 1315 | H167: 86464 | I167: 6400 | J167: 2008-05-05 | K167: 2008-10-15
E168: 2009 | F168: 1145127 | G168: 1305 | H168: 87830 | I168: 6400 | J168: 2009-05-10 | K168: 2009-10-15
E169: 2010 | F169: 1237965 | G169: 1264 | H169: 95022 | I169: 6400 | J169: 2010-05-28 | K169: 2010-10-06
E170: 2011
E196: Année | F196: Nombre de DJU | G196: Consommation chauffage par DJU | H196: Simulation consommation chauffage sans dérive (kWh) | I196: Consommation d'énergie ECS (kWh) | J196: Consommation chauffage (kWh) | K196: Consommation chauffage + ECS (kWh/m2) | L196: Consommation chauffage (kWh/m2 chauffé) | M196: Evolution prix énergie (c€/kWh)
E197: 2003 | F197: =IF(OR(J162="",K162=""), "Dates de chauffe à renseigner", SUM(INDEX('DJU Montsouris'!B:B,MATCH(DATE(YEAR(J162),1,1),'DJU Montsouris'!A:A,0),1):INDEX('DJU Montsouris'!B:B,MATCH(J162,'DJU Montsouris'!A:A,0),1),INDEX('DJU Montsouris'!B:B,MATCH(K162,'DJU Montsouris'!A:A,0),1):INDEX('DJU Montsouris'!B:B,MATCH(DATE(YEAR(J162),12,31),'DJU Montsouris'!A:A,0),1))) -> Dates de chauffe à renseigner | G197: =IF(J197=0,#N/A,J197/F197) ->  | H197: =(INDEX($J$197:$J$205,(MIN(IF(ISERROR($J$197:$J$205),ROW($F$206),ROW($J$197:$J$205))))-ROW($F$196),1))*F197/(INDEX($F$197:$F$205,(MIN(IF(ISERROR($J$197:$J$205),ROW($F$206),ROW($J$197:$J$205))))-ROW($F$196),1)) ->  | I197: =120*G162 -> 0 | J197: =IF(F162="",#N/A,F162-I197) ->  | K197: =IF(F162="","",F162/I162) ->  | L197: =IF(ISNA(J197),"",J197/I162) ->  | M197: =IF(AND(H162<>"",F162<>""),H162/F162*100,#N/A) -> 
E198: 2004 | F198: =IF(OR(J163="",K163=""), "Dates de chauffe à renseigner", SUM(INDEX('DJU Montsouris'!B:B,MATCH(DATE(YEAR(J163),1,1),'DJU Montsouris'!A:A,0),1):INDEX('DJU Montsouris'!B:B,MATCH(J163,'DJU Montsouris'!A:A,0),1),INDEX('DJU Montsouris'!B:B,MATCH(K163,'DJU Montsouris'!A:A,0),1):INDEX('DJU Montsouris'!B:B,MATCH(DATE(YEAR(J163),12,31),'DJU Montsouris'!A:A,0),1))) -> 2148.8 | G198: =IF(J198=0,#N/A,J198/F198) -> 471.097822 | H198: =(INDEX($J$197:$J$205,(MIN(IF(ISERROR($J$197:$J$205),ROW($F$206),ROW($J$197:$J$205))))-ROW($F$196),1))*F198/(INDEX($F$197:$F$205,(MIN(IF(ISERROR($J$197:$J$205),ROW($F$206),ROW($J$197:$J$205))))-ROW($F$196),1)) -> 1012295 | I198: 186000 | J198: =IF(F163="",#N/A, F163-I198) -> 1012295 | K198: 187.2335938 | L198: 158.1710938 | M198: 5.664715283
E199: 2005 | F199: =IF(OR(J164="",K164=""), "Dates de chauffe à renseigner", SUM(INDEX('DJU Montsouris'!B:B,MATCH(DATE(YEAR(J164),1,1),'DJU Montsouris'!A:A,0),1):INDEX('DJU Montsouris'!B:B,MATCH(J164,'DJU Montsouris'!A:A,0),1),INDEX('DJU Montsouris'!B:B,MATCH(K164,'DJU Montsouris'!A:A,0),1):INDEX('DJU Montsouris'!B:B,MATCH(DATE(YEAR(J164),12,31),'DJU Montsouris'!A:A,0),1))) -> 2100.46 | G199: =IF(J199=0,#N/A,J199/F199) -> 476.3194729 | H199: =(INDEX($J$197:$J$205,(MIN(IF(ISERROR($J$197:$J$205),ROW($F$206),ROW($J$197:$J$205))))-ROW($F$196),1))*F199/(INDEX($F$197:$F$205,(MIN(IF(ISERROR($J$197:$J$205),ROW($F$206),ROW($J$197:$J$205))))-ROW($F$196),1)) -> 989522.1313 | I199: 156000 | J199: 1000490 | K199: 180.7015625 | L199: 156.3265625 | M199: 5.927418309
E200: 2006 | F200: =IF(OR(J165="",K165=""), "Dates de chauffe à renseigner", SUM(INDEX('DJU Montsouris'!B:B,MATCH(DATE(YEAR(J165),1,1),'DJU Montsouris'!A:A,0),1):INDEX('DJU Montsouris'!B:B,MATCH(J165,'DJU Montsouris'!A:A,0),1),INDEX('DJU Montsouris'!B:B,MATCH(K165,'DJU Montsouris'!A:A,0),1):INDEX('DJU Montsouris'!B:B,MATCH(DATE(YEAR(J165),12,31),'DJU Montsouris'!A:A,0),1))) -> 2023.24 | G200: 486.608608 | H200: =(INDEX($J$197:$J$205,(MIN(IF(ISERROR($J$197:$J$205),ROW($F$206),ROW($J$197:$J$205))))-ROW($F$196),1))*F200/(INDEX($F$197:$F$205,(MIN(IF(ISERROR($J$197:$J$205),ROW($F$206),ROW($J$197:$J$205))))-ROW($F$196),1)) -> 953143.9575 | I200: 155400 | J200: 984526 | K200: 178.1134375 | L200: 153.8321875 | M200: 6.357342494
E201: 2007 | F201: =IF(OR(J166="",K166=""), "Dates de chauffe à renseigner", SUM(INDEX('DJU Montsouris'!B:B,MATCH(DATE(YEAR(J166),1,1),'DJU Montsouris'!A:A,0),1):INDEX('DJU Montsouris'!B:B,MATCH(J166,'DJU Montsouris'!A:A,0),1),INDEX('DJU Montsouris'!B:B,MATCH(K166,'DJU Montsouris'!A:A,0),1):INDEX('DJU Montsouris'!B:B,MATCH(DATE(YEAR(J166),12,31),'DJU Montsouris'!A:A,0),1))) -> 1749.23 | G201: 494.926339 | H201: =(INDEX($J$197:$J$205,(MIN(IF(ISERROR($J$197:$J$205),ROW($F$206),ROW($J$197:$J$205))))-ROW($F$196),1))*F201/(INDEX($F$197:$F$205,(MIN(IF(ISERROR($J$197:$J$205),ROW($F$206),ROW($J$197:$J$205))))-ROW($F$196),1)) -> 824058.4432 | I201: 147360 | J201: 865740 | K201: 158.296875 | L201: 135.271875 | M201: 6.93129997
E202: 2008 | F202: =IF(OR(J167="",K167=""), "Dates de chauffe à renseigner", SUM(INDEX('DJU Montsouris'!B:B,MATCH(DATE(YEAR(J167),1,1),'DJU Montsouris'!A:A,0),1):INDEX('DJU Montsouris'!B:B,MATCH(J167,'DJU Montsouris'!A:A,0),1),INDEX('DJU Montsouris'!B:B,MATCH(K167,'DJU Montsouris'!A:A,0),1):INDEX('DJU Montsouris'!B:B,MATCH(DATE(YEAR(J167),12,31),'DJU Montsouris'!A:A,0),1))) -> 2044.64 | G202: 495.4896706 | H202: =(INDEX($J$197:$J$205,(MIN(IF(ISERROR($J$197:$J$205),ROW($F$206),ROW($J$197:$J$205))))-ROW($F$196),1))*F202/(INDEX($F$197:$F$205,(MIN(IF(ISERROR($J$197:$J$205),ROW($F$206),ROW($J$197:$J$205))))-ROW($F$196),1)) -> 963225.4509 | I202: 157800 | J202: 1013098 | K202: 182.9528125 | L202: 158.2965625 | M202: 7.384417772
E203: 2009 | F203: =IF(OR(J168="",K168=""), "Dates de chauffe à renseigner", SUM(INDEX('DJU Montsouris'!B:B,MATCH(DATE(YEAR(J168),1,1),'DJU Montsouris'!A:A,0),1):INDEX('DJU Montsouris'!B:B,MATCH(J168,'DJU Montsouris'!A:A,0),1),INDEX('DJU Montsouris'!B:B,MATCH(K168,'DJU Montsouris'!A:A,0),1):INDEX('DJU Montsouris'!B:B,MATCH(DATE(YEAR(J168),12,31),'DJU Montsouris'!A:A,0),1))) -> 2078.87 | G203: 475.5116963 | H203: =(INDEX($J$197:$J$205,(MIN(IF(ISERROR($J$197:$J$205),ROW($F$206),ROW($J$197:$J$205))))-ROW($F$196),1))*F203/(INDEX($F$197:$F$205,(MIN(IF(ISERROR($J$197:$J$205),ROW($F$206),ROW($J$197:$J$205))))-ROW($F$196),1)) -> 979351.1293 | I203: 156600 | J203: 988527 | K203: 178.9260938 | L203: 154.4573438 | M203: 7.669891636
E204: 2010 | F204: =IF(OR(J169="",K169=""), "Dates de chauffe à renseigner", SUM(INDEX('DJU Montsouris'!B:B,MATCH(DATE(YEAR(J169),1,1),'DJU Montsouris'!A:A,0),1):INDEX('DJU Montsouris'!B:B,MATCH(J169,'DJU Montsouris'!A:A,0),1),INDEX('DJU Montsouris'!B:B,MATCH(K169,'DJU Montsouris'!A:A,0),1):INDEX('DJU Montsouris'!B:B,MATCH(DATE(YEAR(J169),12,31),'DJU Montsouris'!A:A,0),1))) -> 2466.87 | G204: 440.3495117 | H204: =(INDEX($J$197:$J$205,(MIN(IF(ISERROR($J$197:$J$205),ROW($F$206),ROW($J$197:$J$205))))-ROW($F$196),1))*F204/(INDEX($F$197:$F$205,(MIN(IF(ISERROR($J$197:$J$205),ROW($F$206),ROW($J$197:$J$205))))-ROW($F$196),1)) -> 1162137.084 | I204: 151680 | J204: 1086285 | K204: 193.4320312 | L204: 169.7320313 | M204: 7.675661267
E205: 2011 | F205: =IF(OR(J170="",K170=""), "Dates de chauffe à renseigner", SUM(INDEX('DJU Montsouris'!B:B,MATCH(DATE(YEAR(J170),1,1),'DJU Montsouris'!A:A,0),1):INDEX('DJU Montsouris'!B:B,MATCH(J170,'DJU Montsouris'!A:A,0),1),INDEX('DJU Montsouris'!B:B,MATCH(K170,'DJU Montsouris'!A:A,0),1):INDEX('DJU Montsouris'!B:B,MATCH(DATE(YEAR(J170),12,31),'DJU Montsouris'!A:A,0),1))) -> Dates de chauffe à renseigner | H205: =(INDEX($J$197:$J$205,(MIN(IF(ISERROR($J$197:$J$205),ROW($F$206),ROW($J$197:$J$205))))-ROW($F$196),1))*F205/(INDEX($F$197:$F$205,(MIN(IF(ISERROR($J$197:$J$205),ROW($F$206),ROW($J$197:$J$205))))-ROW($F$196),1)) ->  | I205: 0
J207: Moyenne : | K207: =AVERAGE(K197:K205) -> 179.9509152 | L207: =AVERAGE(L197:L205) -> 155.1553795

Sheet DJU Montsouris (hidden)
A1: DATE | B1: DJ_CHAUFFAGISTE | EI1: 2013-06-01 | EJ1: 2013-07-01 | EK1: 2013-08-01 | EL1: 2013-09-01 | EM1: 2013-10-01
A2: 2002-01-01 | B2: 20
A3: 2002-01-02 | B3: 19.1
A4: 2002-01-03 | B4: 17.45
A5: 2002-01-04 | B5: 17.45
A6: 2002-01-05 | B6: 16.2
A7: 2002-01-06 | B7: 15.9
A8: 2002-01-07 | B8: 14.05
A9: 2002-01-08 | B9: 14.9
A10: 2002-01-09 | B10: 14.1
A11: 2002-01-10 | B11: 13.5
A12: 2002-01-11 | B12: 12.75
A13: 2002-01-12 | B13: 15.1
A14: 2002-01-13 | B14: 13.75
A15: 2002-01-14 | B15: 10.9
A16: 2002-01-15 | B16: 10.65
A17: 2002-01-16 | B17: 12.4
A18: 2002-01-17 | B18: 12.65
A19: 2002-01-18 | B19: 11.5
A20: 2002-01-19 | B20: 9.6
A21: 2002-01-20 | B21: 9.15
A22: 2002-01-21 | B22: 8.05
A23: 2002-01-22 | B23: 8.95
A24: 2002-01-23 | B24: 9.55
A25: 2002-01-24 | B25: 7.2
A26: 2002-01-25 | B26: 9.4
A27: 2002-01-26 | B27: 6.65
A28: 2002-01-27 | B28: 4.9
A29: 2002-01-28 | B29: 4.4
A30: 2002-01-29 | B30: 10
A31: 2002-01-30 | B31: 7.3
A32: 2002-01-31 | B32: 7
A33: 2002-02-01 | B33: 6.6
A34: 2002-02-02 | B34: 6.25
A35: 2002-02-03 | B35: 6.7
A36: 2002-02-04 | B36: 8.6
A37: 2002-02-05 | B37: 6.55
A38: 2002-02-06 | B38: 10.05
A39: 2002-02-07 | B39: 11.85
A40: 2002-02-08 | B40: 8.25
A41: 2002-02-09 | B41: 7.75
A42: 2002-02-10 | B42: 9.1
A43: 2002-02-11 | B43: 6.85
A44: 2002-02-12 | B44: 4.9
A45: 2002-02-13 | B45: 8.2
A46: 2002-02-14 | B46: 11.95
A47: 2002-02-15 | B47: 15.2
A48: 2002-02-16 | B48: 14.55
A49: 2002-02-17 | B49: 12.35
A50: 2002-02-18 | B50: 13
A51: 2002-02-19 | B51: 11.35
A52: 2002-02-20 | B52: 7.4
A53: 2002-02-21 | B53: 12.6
A54: 2002-02-22 | B54: 10.1
A55: 2002-02-23 | B55: 10
A56: 2002-02-24 | B56: 11.5
A57: 2002-02-25 | B57: 8.7
A58: 2002-02-26 | B58: 4.9
A59: 2002-02-27 | B59: 9.6
A60: 2002-02-28 | B60: 10.45
A61: 2002-03-01 | B61: 11.85
A62: 2002-03-02 | B62: 14.1
A63: 2002-03-03 | B63: 12.55
A64: 2002-03-04 | B64: 10.5
A65: 2002-03-05 | B65: 10.5
A66: 2002-03-06 | B66: 9.65
A67: 2002-03-07 | B67: 5.25
A68: 2002-03-08 | B68: 6.55
A69: 2002-03-09 | B69: 6.05
A70: 2002-03-10 | B70: 9.45
A71: 2002-03-11 | B71: 7.9
A72: 2002-03-12 | B72: 6.65
A73: 2002-03-13 | B73: 3.96
A74: 2002-03-14 | B74: 7.5
A75: 2002-03-15 | B75: 6.9
A76: 2002-03-16 | B76: 6.2
A77: 2002-03-17 | B77: 6.15
A78: 2002-03-18 | B78: 7.4
A79: 2002-03-19 | B79: 5.65
A80: 2002-03-20 | B80: 2.4
A81: 2002-03-21 | B81: 3.8
A82: 2002-03-22 | B82: 6.25
A83: 2002-03-23 | B83: 8.75
A84: 2002-03-24 | B84: 9.75
A85: 2002-03-25 | B85: 11.1
A86: 2002-03-26 | B86: 9.5
A87: 2002-03-27 | B87: 10.3
A88: 2002-03-28 | B88: 9.45
A89: 2002-03-29 | B89: 6.75
A90: 2002-03-30 | B90: 5.45
A91: 2002-03-31 | B91: 6.05
A92: 2002-04-01 | B92: 3.91
A93: 2002-04-02 | B93: 3.44
A94: 2002-04-03 | B94: 3.39
A95: 2002-04-04 | B95: 2.8
A96: 2002-04-05 | B96: 3.03
A97: 2002-04-06 | B97: 7.2
A98: 2002-04-07 | B98: 7.9
A99: 2002-04-08 | B99: 7.1
A100: 2002-04-09 | B100: 8.2
A101: 2002-04-10 | B101: 8.85
A102: 2002-04-11 | B102: 8.35
A103: 2002-04-12 | B103: 7.6
A104: 2002-04-13 | B104: 9.2
A105: 2002-04-14 | B105: 10.7
A106: 2002-04-15 | B106: 9.35
A107: 2002-04-16 | B107: 7.75
A108: 2002-04-17 | B108: 7.5
A109: 2002-04-18 | B109: 5.3
A110: 2002-04-19 | B110: 6.7
A111: 2002-04-20 | B111: 6.4
A112: 2002-04-21 | B112: 4.57
A113: 2002-04-22 | B113: 2.81
A114: 2002-04-23 | B114: 3.17
A115: 2002-04-24 | B115: 2.15
A116: 2002-04-25 | B116: 1.83
A117: 2002-04-26 | B117: 5.65
A118: 2002-04-27 | B118: 7.1
A119: 2002-04-28 | B119: 4.61
A120: 2002-04-29 | B120: 6.95
A121: 2002-04-30 | B121: 4.65
A122: 2002-05-01 | B122: 4.85
A123: 2002-05-02 | B123: 7.5
A124: 2002-05-03 | B124: 6.9
A125: 2002-05-04 | B125: 8.4
A126: 2002-05-05 | B126: 9.25
A127: 2002-05-06 | B127: 7.3
A128: 2002-05-07 | B128: 4.36
A129: 2002-05-08 | B129: 2.15
A130: 2002-05-09 | B130: 3.05
A131: 2002-05-10 | B131: 4.45
A132: 2002-05-11 | B132: 5.05
A133: 2002-05-12 | B133: 3.53
A134: 2002-05-13 | B134: 3.46
A135: 2002-05-14 | B135: 3.57
A136: 2002-05-15 | B136: 3.01
A137: 2002-05-16 | B137: 1.44
A138: 2002-05-17 | B138: 0.41
A139: 2002-05-18 | B139: 2.04
A140: 2002-05-19 | B140: 3.12
A141: 2002-05-20 | B141: 1.31
A142: 2002-05-21 | B142: 0.88
A143: 2002-05-22 | B143: 3.45
A144: 2002-05-23 | B144: 3.54
A145: 2002-05-24 | B145: 3.9
A146: 2002-05-25 | B146: 3.32
A147: 2002-05-26 | B147: 4.1
A148: 2002-05-27 | B148: 5.25
A149: 2002-05-28 | B149: 6.95
A150: 2002-05-29 | B150: 4.54
A151: 2002-05-30 | B151: 3.97
A152: 2002-05-31 | B152: 2.59
A153: 2002-06-01 | B153: 1.11
A154: 2002-06-02 | B154: 0.55
A155: 2002-06-03 | B155: 0.04
A156: 2002-06-04 | B156: 0.92
A157: 2002-06-05 | B157: 1.57
A158: 2002-06-06 | B158: 2.64
A159: 2002-06-07 | B159: 2.34
A160: 2002-06-08 | B160: 1.89
A161: 2002-06-09 | B161: 2.86
A162: 2002-06-10 | B162: 3.91
A163: 2002-06-11 | B163: 2.02
A164: 2002-06-12 | B164: 0.83
A165: 2002-06-13 | B165: 1.18
A166: 2002-06-14 | B166: 0.57
A167: 2002-06-15 | B167: 0.19
A168: 2002-06-16 | B168: 0
A169: 2002-06-17 | B169: 0
A170: 2002-06-18 | B170: 0
A171: 2002-06-19 | B171: 0.48
A172: 2002-06-20 | B172: 1.06
A173: 2002-06-21 | B173: 0.6
A174: 2002-06-22 | B174: 0.12
A175: 2002-06-23 | B175: 0.42
A176: 2002-06-24 | B176: 1.37
A177: 2002-06-25 | B177: 1.23
A178: 2002-06-26 | B178: 0.91
A179: 2002-06-27 | B179: 1.45
A180: 2002-06-28 | B180: 2.51
A181: 2002-06-29 | B181: 2.39
A182: 2002-06-30 | B182: 1.42
A183: 2002-07-01 | B183: 2.3
A184: 2002-07-02 | B184: 2.2
A185: 2002-07-03 | B185: 1.44
A186: 2002-07-04 | B186: 2
A187: 2002-07-05 | B187: 3.1
A188: 2002-07-06 | B188: 1.21
A189: 2002-07-07 | B189: 0.96
A190: 2002-07-08 | B190: 1.07
A191: 2002-07-09 | B191: 0
A192: 2002-07-10 | B192: 1.55
A193: 2002-07-11 | B193: 2.09
A194: 2002-07-12 | B194: 0.6
A195: 2002-07-13 | B195: 1.33
A196: 2002-07-14 | B196: 1.61
A197: 2002-07-15 | B197: 1.01
A198: 2002-07-16 | B198: 0.72
A199: 2002-07-17 | B199: 0.6
A200: 2002-07-18 | B200: 0.69
... 5096 more rows
